Workbook

Sheet Instructions
A1: Project Name: | C1: Reclaim Model - Overview of Program
B2: Hope Bay - P2 Boston Mine | C2: All users are urged to read the Reclaim Model User Manual - Scroll down for overview description of program.
C3: Important! Reclaim 7.0 works better with no other excel files open.
C4: If other excel files are open ignore run time error and proceed
A5: Reclaim Menu | C5: The default Excel menu bar has an additional tab labelled "Add-Ins" that provides options specific to the Reclaim Model.
B6: Clear | C6: This option deletes all input data, deletes any duplicated elements and blanks out the project name. It also allows for segregation into land costs vs water costs if required.
B7: Duplicate | C7: This option Duplicates components of the project. E.g. if there is more than one Open Pit, use duplicate to add a second Open Pit. Quantities for the new Open Pit are erased, but the Activities and Cost Codes are carried over from the original Open Pit. The new Open Pit subtotal is added to the Summary page.
B8: Unit Costs | C8: This option opens a window of unit costs to provide easy reference. NOTE: the unit cost table has a filter in the 'UNITS' column. You can select to only see a particular unit (eg km) or multiple units (km and m3) or all units.
B9: Print All | C9: This option prints the Summary Worksheet, Unit Cost Worksheet, and the individual component worksheets having non-zero balances. Individual worksheets can be printed directly using standard printing methods, such as Ctl - P.
B10: Quit | C10: Select Quit to exit the program
B11: Help | C11: Redirects user to Instructions worksheet.
A13: WorkSheets
B14: Summary | C14: This worksheet contains a cumulative summary of costs for each component of the project. Associated costs such as engineering and project management are added as a percentage of the component costs.
B15: Components | C15: Costs are derived for individual closure and reclamation activities by multiplying a "quantity" of activity by a "unit cost". An activity can be edited, added, or deleted from worksheet. However, care should be taken not to modify cells that are defined and used elsewhere in the program.
C16: Do not change the content or column width of the first column of each component worksheet.
B17: Unit Costs | C17: This worksheet contains a look up table with costs for typical work associated with each closure and reclamation activity
A19: Limitations | C19: The Reclaim Program will NOT work if the worksheets are changed such that the following requirements are not met. Please review the following prior to modifiying worksheets.
B20: WorkSheet Names | C20: The names of the worksheets must not be changed.
B21: Defined Names | C21: Certain cells have defined names, which must not be changed. Where the cell is named, the name will appear in the "Name Box" to the left of the formula bar.
B22: First line of data | C22: The first line of data for any component worksheet starts on line 4. Do not change the first line of a component worksheet, ie the component name.
B23: Cell A1 | C23: Cell A1 on the component sheet MUST always contain the count of that component for the duplicate function to operate. DO NOT CHANGE.
B24: Adding Lines | C24: You can add lines to components and the unit cost table, as long as they are not the last lines. The last line might fall outside the named ranges. You can check the size of the named range by selecting the name from the drop down box at the top left of the sheet. Usually this box has a cell reference, or a name.
B25: Printing | C25: A component will only be printed if its sub-total is greater than zero. In addition, a component and the summary sheet cannot be printed if there is an error. Printing has been set to print 1 page per component.
A27: Conditions of Use | C27: The Reclamation Cost Estimating Model was prepared to serve as a guide for Government Agencies, mining companies, and others to estimate the cost of mine reclamation. This model is not intended to replace reclamation planning or to be used to determine the activities required to reclaim a site or to dictate how much should be spent on reclamation.
C29: Reclaim was prepared by Brodie Consulting Ltd. on behalf of AANDC. AANDC and Brodie Consulting Ltd. are not responsible for the completeness or accuracy of any reclamation estimate made using this model. The user agrees to check and take responsibility for all aspects of any cost estimate made using this model.
A31: The following table provides guidance as to whether water management and treatment is considered short term or long term. Short term closure activities
A32: may be costed within a component (eg 'Open Pit' or 'Rock Pile') or 'Water Management'. Long term or post-closure water treatment is costed in 'Water Treatment'.
D33: Short Term/ Capital Ex. | E33: Long term/ NPV
A34: Open Pit | C34: flood pit - install/operate pumping system | D34: x
C35: construct diversion ditches | D35: x
C36: treat 1st filling | D36: x
C37: install pump/decant system | D37: x
C38: passive/biological treatment | D38: x
C39: overflow treatment | E39: x
A40: Rock Pile/Heap Leach Facility | C40: construct diversion ditches | D40: x
C41: install groundwater collection system | D41: x
C42: install toe seepage collection system | D42: x
C43: collect and treat groundwater | E43: x
C44: collect and treat seepage (ARD/ML) | E44: x
C45: install passive treatment system | D45: x
C46: operate and maintain passive treatment system | E46: x
C47: operate pump and detoxify heap leach pile (cyanide destruction) | D47: x
A48: Tailings Facility | C48: construct diversion ditches | D48: x
C49: pump supernatant (to pit, U/G) | D49: x
C50: treat supernatant | D50: x
C51: install toe seepage collection system | D51: x
C52: collect and treat seepage (ARD/ML) | E52: x
C53: install passive treatment system | D53: x
C54: operate and maintain passive treatment system | E54: x
A55: U/G Mine | C55: accelerate flooding | D55: x
C56: install seepage collection system | D56: x
C57: install dewatering/pumping system | D57: x
C58: operate seepage/dewatering system (ARD/ML) | E58: x
A59: Water Management | C59: refill lakes
C60: redirect creeks/streams | D60: x
C61: stabilize water management ponds | D61: x
C62: stabilize/close sediment ponds | D62: x
C63: fresh water supply - breach embankment | D63: x
C64: fresh water supply - remove piping system | D64: x
C65: construct water treatment plant | D65: x
C66: construct sludge pond | D66: x
C67: water control in reclamation quarry | D67: x
C68: operate/maintain water treatment plant | E68: x

Sheet Summary
B1: SUMMARY OF COSTS
A3: CAPITAL COSTS | B3: COMPONENT NAME | D3: COST | F3: LAND LIABILITY | H3: WATER LIABILITY
A4: OPEN PIT | B4: =IF(ISBLANK('Open Pit'!$C$1),"",'Open Pit'!$C$1) ->  | D4: =Pit1Total -> 0.0001 | F4: =Pit1LandTotal -> 0 | H4: =Pit1WaterTotal -> 0
A5: UNDERGROUND MINE | B5: =IF(ISBLANK('UG Mine'!$C$1),"",'UG Mine'!$C$1) ->  | D5: =UG1Total -> 60846.5501 | F5: =UG1LandTotal -> 60846.55 | H5: =UG1WaterTotal -> 0
A6: TAILINGS FACILITY | B6: =IF(ISBLANK(Tailings!$C$1),"",Tailings!$C$1) ->  | D6: =Tailings1Total -> 15195574.06 | F6: =Tailings1LandTotal -> 7597787.029 | H6: =Tailings1WaterTotal -> 7597787.029
A7: ROCK PILE | B7: =IF(ISBLANK('Rock Pile'!$C$1),"",'Rock Pile'!$C$1) -> Waste Rock and Overburden Dump | D7: =RP1Total -> 57142.5001 | F7: =RP1LandTotal -> 57142.5 | H7: =RP1WaterTotal -> 0
A8: BUILDINGS AND EQUIPMENT | B8: =IF(ISBLANK('Bldgs & Equip'!$C$1),"",'Bldgs & Equip'!$C$1) -> Boston Mine | D8: =Bldg1Total -> 5313366.098 | F8: =Bldg1LandTotal -> 5070136.676 | H8: =Bldg1WaterTotal -> 243229.4212
A9: CHEMICALS AND CONTAMINATED SOIL MANAGEMENT | B9: =IF(ISBLANK(Chemicals!$C$1),"",Chemicals!$C$1) ->  | D9: =Chem1Total -> 636122.8397 | F9: =Chem1LandTotal -> 318061.4198 | H9: =Chem1WaterTotal -> 318061.4198
A10: SURFACE AND GROUNDWATER MANAGEMENT | B10: =IF(ISBLANK('Water Treatment'!$C$1),"",'Water Treatment'!$C$1) ->  | D10: =Water1Total -> 46772.3901 | F10: - | H10: =Water1Total -> 46772.3901
A11: INTERIM CARE AND MAINTENANCE | B11: =IF(ISBLANK(ICM!$C$1),"",ICM!$C$1) ->  | D11: =ICMTotal -> 4786320 | F11: - | H11: =ICMTotal -> 4786320
B12: SUBTOTAL: Capital Costs | D12: =SUM(D4:D11) -> 26096144.44 | F12: =SUM(F4:F11) -> 13103974.18 | H12: =SUM(H4:H11) -> 12992170.26
B13: PERCENT OF SUBTOTAL | F13: =IF(F12<0.01,0,F12/D12) -> 0.5021421539 | H13: =IF(H12<0.01,0,H12/D12) -> 0.4978578461
A15: INDIRECT COSTS | D15: COST | F15: LAND LIABILITY | H15: WATER LIABILITY
A16: MOBILIZATION/DEMOBILIZATION | B16: =IF(ISBLANK(Mobilization!$C$1),"",Mobilization!$C$1) ->  | D16: =MobTotal -> 5041005 | F16: =D16*$F$13 -> 2531301.108 | H16: =D16*$H$13 -> 2509703.892
A17: POST-CLOSURE MONITORING AND MAINTENANCE | B17: =IF(ISBLANK(PostClosure!$C$1),"",PostClosure!$C$1) ->  | D17: =PC1Total -> 1577876.502 | F17: =D17*$F$13 -> 792318.3053 | H17: =D17*$H$13 -> 785558.1967
A18: ENGINEERING | B18: 0.05 | D18: =B18*$D$12 -> 1304807.222 | F18: =+$F$13*D18 -> 655198.7088 | H18: =+$H$13*D18 -> 649608.513
A19: PROJECT MANAGEMENT | B19: 0.05 | D19: 1304807.222 | F19: 655198.7088 | H19: 649608.513
A20: HEALTH AND SAFETY PLANS/MONITORING & QA/QC | B20: 0 | D20: 0 | F20: 0 | H20: 0
A21: BONDING/INSURANCE | B21: 0 | D21: 0 | F21: 0 | H21: 0
A22: CONTINGENCY | B22: 0.2 | D22: 5219228.887 | F22: 2620794.835 | H22: 2598434.052
A23: MARKET PRICE FACTOR ADJUSTMENT | B23: 0 | D23: 0 | F23: 0 | H23: 0
B24: SUBTOTAL: Indirect Costs | D24: =SUM(D16:D23) -> 14447724.83 | F24: =SUM(F16:F23) -> 7254811.666 | H24: =SUM(H16:H23) -> 7192913.166
A26: TOTAL COSTS | D26: =D12+D24 -> 40543869.27 | F26: =F12+F24 -> 20358785.84 | H26: =H12+H24 -> 20185083.43

Sheet UG Mine
A1: 1 | B1: Underground Mine Name | G1: UG Mine # | H1: 1
B3: ACTIVITY/MATERIAL | C3: Notes | D3: Unit | E3: Qty | F3: Cost Code | G3: Unit Cost | H3: Cost | I3: % Land | J3: Land Cost | K3: Water Cost
B4: CONTROL ACCESS
B5: Fence | D5: m | F5: =NA() ->  | G5: =IF(ISNA(F5),0,INDEX(IF(UPPER(RIGHT(F5,1))=Low,UnitCostLow, IF(UPPER(RIGHT(F5,1))=High,UnitCostHigh,UnitCostSpecified)),MATCH(UPPER(LEFT(F5,LEN(F5)-1)),CostCode,0))) -> 0 | H5: =G5*E5 -> 0 | J5: =H5*I5 -> 0 | K5: =H5*(1-I5) -> 0
B6: Signs | D6: each | E6: 2 | F6: SH | G6: 37.08 | H6: 74.16 | I6: 1 | J6: =H6*I6 -> 74.16 | K6: =H6*(1-I6) -> 0
B7: Block roads | D7: m3 | F7: =NA() ->  | G7: 0 | H7: =G7*E7 -> 0 | J7: 0 | K7: 0
B8: Berm | D8: m3 | F8: =NA() ->  | G8: 0 | H8: 0 | J8: 0 | K8: 0
B9: Concrete wall in portals | D9: m3 | F9: =NA() ->  | G9: 0 | H9: 0 | J9: =H9*I9 -> 0 | K9: =H9*(1-I9) -> 0
B10: Backfill portal #1 | C10: BM-033 | D10: m3 | E10: 710 | F10: TMAC | G10: 24.53 | H10: 17416.3 | I10: 1 | J10: 17416.3 | K10: 0
B11: Backfill portal #2 | D11: m3 | F11: =NA() ->  | G11: 0 | H11: 0 | J11: 0 | K11: 0
B12: Cap Vent Raise | C12: BM-028 | D12: each | E12: 1 | F12: TMAC | G12: 14293 | H12: 14293 | I12: 1 | J12: 14293 | K12: 0
B13: Cap raise #2 | D13: m3 | F13: =NA() ->  | G13: 0 | H13: 0 | J13: 0 | K13: 0
B14: Cap shaft #1 | D14: m3 | F14: =NA() ->  | G14: 0 | H14: 0 | J14: 0 | K14: 0
B15: Cap shaft #2 | D15: m3 | F15: =NA() ->  | G15: 0 | H15: 0 | J15: 0 | K15: 0
B16: Grading at Vent Raise | D16: m2 | E16: 2270 | F16: TMAC | G16: 0.24 | H16: 544.8 | I16: 1 | J16: =H16*I16 -> 544.8 | K16: =H16*(1-I16) -> 0 | M16: consider grading at the vent raise coincident with adjacent access road. Reduction from $1.23 to 0.24/m2
B17: Backfill open stope | D17: m3 | F17: sc3h | G17: 14.2 | H17: 0 | J17: 0 | K17: 0
B18: Concrete cap over open stope | D18: m3 | F18: =NA() ->  | G18: 0 | H18: 0 | J18: 0 | K18: 0
B19: Other - crown pillar study | D19: LS | F19: =NA() ->  | G19: 25000 | H19: 0 | J19: 0 | K19: 0
B20: REMOVE HAZARDOUS MATERIALS
B21: Remove hazardous materials, U/G labor | D21: mandays | F21: =NA() ->  | G21: 500 | H21: =G21*E21 -> 0 | J21: =H21*I21 -> 0 | K21: =H21*(1-I21) -> 0
B22: Remove/decontam. stationary & elect. equip | D22: lm | E22: 200 | F22: TMAC | G22: 119.02 | H22: =G22*E22 -> 23804 | I22: 1 | J22: =H22*I22 -> 23804 | K22: =H22*(1-I22) -> 0
B23: Remove/decontam. mobile equipment | D23: each | F23: =NA() ->  | G23: =IF(ISNA(F23),0,INDEX(IF(UPPER(RIGHT(F23,1))=Low,UnitCostLow, IF(UPPER(RIGHT(F23,1))=High,UnitCostHigh,UnitCostSpecified)),MATCH(UPPER(LEFT(F23,LEN(F23)-1)),CostCode,0))) -> 0 | H23: =G23*E23 -> 0 | J23: =H23*I23 -> 0 | K23: =H23*(1-I23) -> 0
B24: Remove misc. haz. mat & explosives | D24: kg | F24: =NA() ->  | G24: =IF(ISNA(F24),0,INDEX(IF(UPPER(RIGHT(F24,1))=Low,UnitCostLow, IF(UPPER(RIGHT(F24,1))=High,UnitCostHigh,UnitCostSpecified)),MATCH(UPPER(LEFT(F24,LEN(F24)-1)),CostCode,0))) -> 0 | H24: =G24*E24 -> 0 | J24: =H24*I24 -> 0 | K24: =H24*(1-I24) -> 0
B25: Other | C25: BM-028 & BM-033 Relocate debris and equipment to Roberts Bay | D25: LS | E25: 1 | F25: TMAC | G25: =2637.83+1344.8+731.66 -> 4714.29 | H25: =G25*E25 -> 4714.29 | I25: 1 | J25: =H25*I25 -> 4714.29 | K25: =H25*(1-I25) -> 0
B26: INSTALL BULKHEADS
B27: Bulkheads to control water flow | D27: each | F27: =NA() ->  | G27: =IF(ISNA(F27),0,INDEX(IF(UPPER(RIGHT(F27,1))=Low,UnitCostLow, IF(UPPER(RIGHT(F27,1))=High,UnitCostHigh,UnitCostSpecified)),MATCH(UPPER(LEFT(F27,LEN(F27)-1)),CostCode,0))) -> 0 | H27: =G27*E27 -> 0 | J27: =H27*I27 -> 0 | K27: =H27*(1-I27) -> 0
B28: Grout bulkhead | D28: m3 | F28: =NA() ->  | G28: =IF(ISNA(F28),0,INDEX(IF(UPPER(RIGHT(F28,1))=Low,UnitCostLow, IF(UPPER(RIGHT(F28,1))=High,UnitCostHigh,UnitCostSpecified)),MATCH(UPPER(LEFT(F28,LEN(F28)-1)),CostCode,0))) -> 0 | H28: =G28*E28 -> 0 | J28: =H28*I28 -> 0 | K28: =H28*(1-I28) -> 0
B29: FLOOD MINE
B30: Supply/install pump | D30: each | F30: =NA() ->  | G30: =IF(ISNA(F30),0,INDEX(IF(UPPER(RIGHT(F30,1))=Low,UnitCostLow, IF(UPPER(RIGHT(F30,1))=High,UnitCostHigh,UnitCostSpecified)),MATCH(UPPER(LEFT(F30,LEN(F30)-1)),CostCode,0))) -> 0 | H30: =G30*E30 -> 0 | J30: 0 | K30: 0
B31: Supply/install piping system | D31: each | F31: =NA() ->  | G31: =IF(ISNA(F31),0,INDEX(IF(UPPER(RIGHT(F31,1))=Low,UnitCostLow, IF(UPPER(RIGHT(F31,1))=High,UnitCostHigh,UnitCostSpecified)),MATCH(UPPER(LEFT(F31,LEN(F31)-1)),CostCode,0))) -> 0 | H31: =G31*E31 -> 0 | J31: =H31*I31 -> 0 | K31: =H31*(1-I31) -> 0
B32: Operate pumps to flood workings | D32: m3 | F32: =NA() ->  | G32: =IF(ISNA(F32),0,INDEX(IF(UPPER(RIGHT(F32,1))=Low,UnitCostLow, IF(UPPER(RIGHT(F32,1))=High,UnitCostHigh,UnitCostSpecified)),MATCH(UPPER(LEFT(F32,LEN(F32)-1)),CostCode,0))) -> 0 | H32: =G32*E32 -> 0 | J32: 0 | K32: 0
B33: Other | F33: =NA() ->  | G33: =IF(ISNA(F33),0,INDEX(IF(UPPER(RIGHT(F33,1))=Low,UnitCostLow, IF(UPPER(RIGHT(F33,1))=High,UnitCostHigh,UnitCostSpecified)),MATCH(UPPER(LEFT(F33,LEN(F33)-1)),CostCode,0))) -> 0 | H33: =G33*E33 -> 0 | J33: 0 | K33: 0
B34: INSTALL GROUNDWATER COLLECTION SYSTEM
B35: Excavate/install sumps | D35: m2 | F35: =NA() ->  | G35: =IF(ISNA(F35),0,INDEX(IF(UPPER(RIGHT(F35,1))=Low,UnitCostLow, IF(UPPER(RIGHT(F35,1))=High,UnitCostHigh,UnitCostSpecified)),MATCH(UPPER(LEFT(F35,LEN(F35)-1)),CostCode,0))) -> 0 | H35: =G35*E35 -> 0 | J35: =H35*I35 -> 0 | K35: =+H35*(1-I35) -> 0
B36: Install pumping wells | D36: m3 | F36: =NA() ->  | G36: 0 | H36: 0 | J36: 0 | K36: 0
B37: Install pumps/pipelines/power supply | D37: LS | F37: =NA() ->  | G37: 0 | H37: 0 | J37: 0 | K37: 0
B38: SPECIALIZED ITEMS
B39: Install water quality monitoring pipes | D39: each | F39: =NA() ->  | G39: =IF(ISNA(F39),0,INDEX(IF(UPPER(RIGHT(F39,1))=Low,UnitCostLow, IF(UPPER(RIGHT(F39,1))=High,UnitCostHigh,UnitCostSpecified)),MATCH(UPPER(LEFT(F39,LEN(F39)-1)),CostCode,0))) -> 0 | H39: =G39*E39 -> 0 | J39: =H39*I39 -> 0 | K39: 0
B40: Install permanent pumping system | D40: each | F40: =NA() ->  | G40: 0 | H40: =G40*E40 -> 0 | J40: =H40*I40 -> 0 | K40: 0
B41: Other | F41: =NA() ->  | G41: =IF(ISNA(F41),0,INDEX(IF(UPPER(RIGHT(F41,1))=Low,UnitCostLow, IF(UPPER(RIGHT(F41,1))=High,UnitCostHigh,UnitCostSpecified)),MATCH(UPPER(LEFT(F41,LEN(F41)-1)),CostCode,0))) -> 0 | H41: =G41*E41 -> 0 | J41: =H41*I41 -> 0 | K41: 0
G42: Total | H42: =SUM(H5:H41)+0.0001 -> 60846.5501 | J42: =SUM(J5:J41) -> 60846.55 | K42: =SUM(K5:K41) -> 0
G43: % of Total | J43: =J42/H42 -> 0.9999999984 | K43: =K42/H42 -> 0

Sheet Tailings
A1: 1 | B1: Tailings Impoundment Name: | G1: Pond # | H1: 1
B3: ACTIVITY/MATERIAL | C3: Notes | D3: Units | E3: Quantity | F3: Cost Code | G3: Unit Cost | H3: Cost | I3: % Land | J3: Land Cost | K3: Water Cost
B4: CONTROL ACCESS
B5: Fence | D5: m | F5: =NA() ->  | G5: =IF(ISNA(F5),0,INDEX(IF(UPPER(RIGHT(F5,1))=Low,UnitCostLow, IF(UPPER(RIGHT(F5,1))=High,UnitCostHigh,UnitCostSpecified)),MATCH(UPPER(LEFT(F5,LEN(F5)-1)),CostCode,0))) -> 0 | H5: =G5*E5 -> 0 | J5: =H5*I5 -> 0 | K5: =+H5*(1-I5) -> 0
B6: Signs | D6: each | F6: =NA() ->  | G6: 0 | H6: 0 | J6: =H6*I6 -> 0 | K6: =+H6*(1-I6) -> 0
B7: Berm | D7: m3 | F7: =NA() ->  | G7: 0 | H7: 0 | J7: 0 | K7: 0
B8: Block roads | D8: m3 | F8: =NA() ->  | G8: 0 | H8: 0 | J8: 0 | K8: 0
B9: Other | F9: =NA() ->  | G9: 0 | H9: 0 | J9: 0 | K9: 0
B10: STABILIZE EMBANKMENT(S)
B11: Toe buttress, drainage layer | D11: m3 | F11: =NA() ->  | G11: 0 | H11: =G11*E11 -> 0 | J11: 0 | K11: 0
B12: Toe buttress, bulk fill | D12: m3 | F12: =NA() ->  | G12: 0 | H12: 0 | J12: 0 | K12: 0
B13: Rip rap | D13: m3 | F13: RB2 | G13: =Unit_Costs!G27 -> 17.8 | H13: 0 | J13: 0 | K13: 0
B14: Vegetate | D14: ha | F14: =NA() ->  | G14: 0 | H14: 0 | J14: 0 | K14: 0
B15: Raise crest | D15: m3 | F15: =NA() ->  | G15: 0 | H15: 0 | J15: 0 | K15: 0
B16: Flatten slopes | D16: m3 | F16: =NA() ->  | G16: 0 | H16: 0 | J16: 0 | K16: 0
B17: Other | F17: =NA() ->  | G17: 0 | H17: 0 | J17: 0 | K17: 0
B18: COVER TAILINGS
B19: Grade/shape tailings surface | C19: BM-031 | D19: m2 | E19: 72900 | F19: TMAC | G19: 0.24 | H19: =G19*E19 -> 17496 | I19: 0.5 | J19: =H19*I19 -> 8748 | K19: =+H19*(1-I19) -> 8748 | M19: Given the nature of the grading work (ie tailings) we concur with the grader rate of $0.24/m2
B20: Liner bedding | D20: m3 | F20: =NA() ->  | G20: =IF(ISNA(F20),0,INDEX(IF(UPPER(RIGHT(F20,1))=Low,UnitCostLow, IF(UPPER(RIGHT(F20,1))=High,UnitCostHigh,UnitCostSpecified)),MATCH(UPPER(LEFT(F20,LEN(F20)-1)),CostCode,0))) -> 0 | H20: =G20*E20 -> 0 | J20: =H20*I20 -> 0 | K20: =+H20*(1-I20) -> 0
B21: Subgrade preparation - compact | D21: m2 | F21: =NA() ->  | G21: =IF(ISNA(F21),0,INDEX(IF(UPPER(RIGHT(F21,1))=Low,UnitCostLow, IF(UPPER(RIGHT(F21,1))=High,UnitCostHigh,UnitCostSpecified)),MATCH(UPPER(LEFT(F21,LEN(F21)-1)),CostCode,0))) -> 0 | H21: =G21*E21 -> 0 | J21: =H21*I21 -> 0 | K21: =+H21*(1-I21) -> 0
B22: Supply geotextile/geosynthetic | D22: m2 | F22: =NA() ->  | G22: =IF(ISNA(F22),0,INDEX(IF(UPPER(RIGHT(F22,1))=Low,UnitCostLow, IF(UPPER(RIGHT(F22,1))=High,UnitCostHigh,UnitCostSpecified)),MATCH(UPPER(LEFT(F22,LEN(F22)-1)),CostCode,0))) -> 0 | H22: 0 | J22: 0 | K22: 0
B23: Supply & Install geotextile/geosynthetic | C23: BM-031 | D23: m2 | E23: 202826 | F23: TMAC | G23: 33.85 | H23: =G23*E23 -> 6865660.1 | I23: 0.5 | J23: =H23*I23 -> 3432830.05 | K23: =+H23*(1-I23) -> 3432830.05
B24: Soil cover | D24: m3 | F24: SC4L | G24: =IF(ISNA(F24),0,INDEX(IF(UPPER(RIGHT(F24,1))=Low,UnitCostLow, IF(UPPER(RIGHT(F24,1))=High,UnitCostHigh,UnitCostSpecified)),MATCH(UPPER(LEFT(F24,LEN(F24)-1)),CostCode,0))) -> 9.3 | H24: 0 | J24: 0 | K24: 0
B25: Rock cover | C25: Based on 1000 mm cap | D25: m3 | E25: 202826 | F25: =NA() ->  | G25: 16.35 | H25: =G25*E25 -> 3316205.1 | I25: 0.5 | J25: =H25*I25 -> 1658102.55 | K25: =+H25*(1-I25) -> 1658102.55
B26: Other | C26: Rock Crushing | D26: m3 | E26: 60847.8 | F26: TMAC | G26: 4.91 | H26: 298762.698 | I26: 0.5 | J26: 149381.349 | K26: 149381.349
B27: Other | C27: Drill and Blast rock for cover BM-031 | D27: m3 | E27: 202826 | F27: TMAC | G27: 23.16 | H27: =G27*E27 -> 4697450.16 | I27: 0.5 | J27: =H27*I27 -> 2348725.08 | K27: =+H27*(1-I27) -> 2348725.08
B28: BURY PAG ROCK
B29: Relocate PAG rock | D29: m3 | F29: =NA() ->  | G29: 0 | H29: =G29*E29 -> 0 | J29: 0 | K29: 0
B30: Place cover over PAG rock | D30: m3 | F30: =NA() ->  | G30: 0 | H30: =G30*E30 -> 0 | J30: 0 | K30: 0
B31: Raise crest of dam | D31: m3 | F31: =NA() ->  | G31: 0 | H31: =G31*E31 -> 0 | J31: 0 | K31: 0
B32: Other | F32: =NA() ->  | G32: 0 | H32: =G32*E32 -> 0 | J32: 0 | K32: 0
B33: STABILIZE DECANT SYSTEM
B34: Excavate and replace | D34: m3 | F34: =NA() ->  | G34: =IF(ISNA(F34),0,INDEX(IF(UPPER(RIGHT(F34,1))=Low,UnitCostLow, IF(UPPER(RIGHT(F34,1))=High,UnitCostHigh,UnitCostSpecified)),MATCH(UPPER(LEFT(F34,LEN(F34)-1)),CostCode,0))) -> 0 | H34: =G34*E34 -> 0 | J34: =H34*I34 -> 0 | K34: =+H34*(1-I34) -> 0
B35: Plug/backfill with concrete or clay | D35: m3 | F35: =NA() ->  | G35: =IF(ISNA(F35),0,INDEX(IF(UPPER(RIGHT(F35,1))=Low,UnitCostLow, IF(UPPER(RIGHT(F35,1))=High,UnitCostHigh,UnitCostSpecified)),MATCH(UPPER(LEFT(F35,LEN(F35)-1)),CostCode,0))) -> 0 | H35: =G35*E35 -> 0 | J35: =H35*I35 -> 0 | K35: =+H35*(1-I35) -> 0
B36: Other | F36: =NA() ->  | G36: =IF(ISNA(F36),0,INDEX(IF(UPPER(RIGHT(F36,1))=Low,UnitCostLow, IF(UPPER(RIGHT(F36,1))=High,UnitCostHigh,UnitCostSpecified)),MATCH(UPPER(LEFT(F36,LEN(F36)-1)),CostCode,0))) -> 0 | H36: =G36*E36 -> 0 | J36: =H36*I36 -> 0 | K36: =+H36*(1-I36) -> 0
B37: REMOVE TAILINGS DISCHARGE
B38: Cyclones | D38: m3 | F38: =NA() ->  | G38: =IF(ISNA(F38),0,INDEX(IF(UPPER(RIGHT(F38,1))=Low,UnitCostLow, IF(UPPER(RIGHT(F38,1))=High,UnitCostHigh,UnitCostSpecified)),MATCH(UPPER(LEFT(F38,LEN(F38)-1)),CostCode,0))) -> 0 | H38: =G38*E38 -> 0 | J38: =H38*I38 -> 0 | K38: =+H38*(1-I38) -> 0
B39: Pipe | D39: m | F39: ppls | G39: 57.33 | H39: =G39*E39 -> 0 | J39: =H39*I39 -> 0 | K39: =+H39*(1-I39) -> 0
B40: Remove reclaim barge | D40: allow | F40: =NA() ->  | G40: =IF(ISNA(F40),0,INDEX(IF(UPPER(RIGHT(F40,1))=Low,UnitCostLow, IF(UPPER(RIGHT(F40,1))=High,UnitCostHigh,UnitCostSpecified)),MATCH(UPPER(LEFT(F40,LEN(F40)-1)),CostCode,0))) -> 0 | H40: =G40*E40 -> 0 | J40: =H40*I40 -> 0 | K40: =+H40*(1-I40) -> 0
B41: CONSTRUCT DIVERSION DITCHES
B42: Excavate ditches -soil | D42: m3 | F42: =NA() ->  | G42: =IF(ISNA(F42),0,INDEX(IF(UPPER(RIGHT(F42,1))=Low,UnitCostLow, IF(UPPER(RIGHT(F42,1))=High,UnitCostHigh,UnitCostSpecified)),MATCH(UPPER(LEFT(F42,LEN(F42)-1)),CostCode,0))) -> 0 | H42: =G42*E42 -> 0 | J42: =H42*I42 -> 0 | K42: =+H42*(1-I42) -> 0
B43: Excavate ditches -rock | D43: m3 | F43: =NA() ->  | G43: =IF(ISNA(F43),0,INDEX(IF(UPPER(RIGHT(F43,1))=Low,UnitCostLow, IF(UPPER(RIGHT(F43,1))=High,UnitCostHigh,UnitCostSpecified)),MATCH(UPPER(LEFT(F43,LEN(F43)-1)),CostCode,0))) -> 0 | H43: =G43*E43 -> 0 | J43: 0 | K43: 0
B44: Rip rap in channel base | D44: m3 | F44: =NA() ->  | G44: =IF(ISNA(F44),0,INDEX(IF(UPPER(RIGHT(F44,1))=Low,UnitCostLow, IF(UPPER(RIGHT(F44,1))=High,UnitCostHigh,UnitCostSpecified)),MATCH(UPPER(LEFT(F44,LEN(F44)-1)),CostCode,0))) -> 0 | H44: =G44*E44 -> 0 | J44: 0 | K44: 0
B45: FLOOD TAILINGS
B46: Doze tailings to final contour | D46: m3 | F46: =NA() ->  | G46: 0 | H46: =G46*E46 -> 0 | J46: 0 | K46: 0
B47: Raise crest of dam | D47: m3 | F47: =NA() ->  | G47: 0 | H47: =G47*E47 -> 0 | J47: 0 | K47: 0
B48: Other | F48: =NA() ->  | G48: 0 | H48: =G48*E48 -> 0 | J48: 0 | K48: 0
B49: UPGRADE SPILLWAY
B50: Excavate channel, rock | D50: m3 | F50: =NA() ->  | G50: 0 | H50: =G50*E50 -> 0 | J50: 0 | K50: 0
B51: Excavate channel, soil | D51: m3 | F51: SC3H | G51: 14.2 | H51: =G51*E51 -> 0 | J51: 0 | K51: 0
B52: Concrete | D52: m3 | F52: =NA() ->  | G52: 0 | H52: =G52*E52 -> 0 | J52: 0 | K52: 0
B53: Rip rap | D53: m3 | F53: RB4H | G53: 30.75 | H53: =G53*E53 -> 0 | J53: 0 | K53: 0
B54: Geotextile | D54: m2 | F54: GSTL | G54: 3.44 | H54: =G54*E54 -> 0 | J54: 0 | K54: 0
B55: CONSTRUCT SEEPAGE COLLECTION POND
B56: Excavate seepage collection pond | D56: m3 | F56: =NA() ->  | G56: =IF(ISNA(F56),0,INDEX(IF(UPPER(RIGHT(F56,1))=Low,UnitCostLow, IF(UPPER(RIGHT(F56,1))=High,UnitCostHigh,UnitCostSpecified)),MATCH(UPPER(LEFT(F56,LEN(F56)-1)),CostCode,0))) -> 0 | H56: =G56*E56 -> 0 | J56: =H56*I56 -> 0 | K56: =+H56*(1-I56) -> 0
B57: Doze & spread excavated material | D57: m3 | F57: =NA() ->  | G57: 0 | H57: 0 | J57: 0 | K57: 0
B58: Vegetate spread material | D58: ha | F58: =NA() ->  | G58: 0 | H58: 0 | J58: 0 | K58: 0
B59: Bedding layer | D59: m3 | F59: =NA() ->  | G59: 0 | H59: 0 | J59: 0 | K59: 0
B60: Supply geomembrane | D60: m2 | F60: =NA() ->  | G60: 0 | H60: 0 | J60: 0 | K60: 0
B61: Install geomembrane | D61: m2 | F61: =NA() ->  | G61: 0 | H61: 0 | J61: 0 | K61: 0
B62: Erosion protection layer | D62: m3 | F62: =NA() ->  | G62: 0 | H62: 0 | J62: 0 | K62: 0
B63: INSTALL GROUNDWATER COLLECTION SYSTEM
B64: Excavate/install sumps | D64: m3 | F64: =NA() ->  | G64: =IF(ISNA(F64),0,INDEX(IF(UPPER(RIGHT(F64,1))=Low,UnitCostLow, IF(UPPER(RIGHT(F64,1))=High,UnitCostHigh,UnitCostSpecified)),MATCH(UPPER(LEFT(F64,LEN(F64)-1)),CostCode,0))) -> 0 | H64: =G64*E64 -> 0 | J64: =H64*I64 -> 0 | K64: =+H64*(1-I64) -> 0
B65: Install pumping wells | D65: m3 | F65: =NA() ->  | G65: 0 | H65: 0 | J65: 0 | K65: 0
B66: Install pumps/pipelines/power supply | D66: LS | F66: =NA() ->  | G66: 0 | H66: 0 | J66: 0 | K66: 0
B67: SPECIALIZED ITEMS
B68: Install permanent instrumentation, supply & technican | D68: each | F68: =NA() ->  | G68: 30000 | H68: =G68*E68 -> 0 | J68: =H68*I68 -> 0 | K68: =+H68*(1-I68) -> 0
B69: Install permanent instrumentation, drilling | D69: each | F69: =NA() ->  | G69: 30000 | H69: =G69*E69 -> 0 | K69: =+H69*(1-I69) -> 0
B70: TREAT SEEPAGE - see "Water Management" and "Water Treatment"
B71: TREAT SUPERNATANT
B72: Pump water (to pit, U/G) | D72: m3 | F72: =NA() ->  | G72: =IF(ISNA(F72),0,INDEX(IF(UPPER(RIGHT(F72,1))=Low,UnitCostLow, IF(UPPER(RIGHT(F72,1))=High,UnitCostHigh,UnitCostSpecified)),MATCH(UPPER(LEFT(F72,LEN(F72)-1)),CostCode,0))) -> 0 | H72: =G72*E72 -> 0 | J72: =H72*I72 -> 0 | K72: =+H72*(1-I72) -> 0
B73: Equipment maintenance and parts | D73: allow | F73: =NA() ->  | G73: 100000 | H73: =G73*E73 -> 0 | J73: =H73*I73 -> 0 | K73: =+H73*(1-I73) -> 0
B74: Supply reagents | D74: tonne | F74: =NA() ->  | G74: =IF(ISNA(F74),0,INDEX(IF(UPPER(RIGHT(F74,1))=Low,UnitCostLow, IF(UPPER(RIGHT(F74,1))=High,UnitCostHigh,UnitCostSpecified)),MATCH(UPPER(LEFT(F74,LEN(F74)-1)),CostCode,0))) -> 0 | H74: =G74*E74 -> 0 | J74: =H74*I74 -> 0 | K74: =+H74*(1-I74) -> 0
G75: Annual treatment costs | H75: =SUM(H72:H74)+0.0001 -> 0.0001
B76: Number of years of treatment | D76: years
G77: Total treatment costs | H77: =H75*E76 -> 0 | K77: =H77 -> 0
G78: Total | H78: =SUM(H5:H69)+H77+0.0001 -> 15195574.06 | J78: =SUM(J5:J69)+J77 -> 7597787.029 | K78: =SUM(K5:K69)+K77 -> 7597787.029
G79: % of Total | J79: =J78/H78 -> 0.5 | K79: =K78/H78 -> 0.5
B80: * for construction of passive treatment system refer to "Water Management"

Sheet Rock Pile
A1: 1 | B1: Rock Pile Name: | C1: Waste Rock and Overburden Dump
B3: ACTIVITY/MATERIAL | C3: Notes | D3: Units | E3: Quantity | F3: Cost Code | G3: Unit Cost | H3: Cost | I3: % Land | J3: Land Cost | K3: Water Cost
B4: STABILIZE SLOPES
B5: Grade Waste Rock Pile | C5: BM-024 | D5: m3 | E5: 40778 | F5: TMAC | G5: 0.95 | H5: =G5*E5 -> 38739.1 | I5: 1 | J5: =H5*I5 -> 38739.1 | K5: =+H5*(1-I5) -> 0
B6: Grade Overburden Pile | C6: BM-026 | D6: m3 | E6: 17860 | F6: TMAC | G6: 0.95 | H6: 16967 | I6: 1 | J6: 16967 | K6: 0
B7: Grade Old Camp Ore Pile | C7: BM-040 | D7: m3 | E7: 1512 | F7: TMAC | G7: 0.95 | H7: 1436.4 | I7: 1 | J7: 1436.4 | K7: 0 | N7: =SUM(E5:E7) -> 60150
B8: Grade Ore Stockpile | C8: BM-001 in BM-036 Bldg & Equip | D8: m3 | F8: =NA() ->  | G8: =IF(ISNA(F8),0,INDEX(IF(UPPER(RIGHT(F8,1))=Low,UnitCostLow, IF(UPPER(RIGHT(F8,1))=High,UnitCostHigh,UnitCostSpecified)),MATCH(UPPER(LEFT(F8,LEN(F8)-1)),CostCode,0))) -> 0 | H8: 0 | J8: 0 | K8: 0
B9: Toe buttress, drain mat'l | D9: m3 | F9: =NA() ->  | G9: 0 | H9: 0 | J9: 0 | K9: 0
B10: Toe buttress, fill mat'l A | D10: m3 | F10: =NA() ->  | G10: 0 | H10: 0 | J10: 0 | K10: 0
B11: Toe buttress, fill mat'l B | D11: m3 | F11: =NA() ->  | G11: 0 | H11: 0 | J11: 0 | K11: 0
B12: Other | F12: =NA() ->  | G12: 0 | H12: 0 | J12: 0 | K12: 0
B13: COVER ROCK PILE
B14: Subgrade preparation - doze surface | D14: m3 | F14: =NA() ->  | G14: =IF(ISNA(F14),0,INDEX(IF(UPPER(RIGHT(F14,1))=Low,UnitCostLow, IF(UPPER(RIGHT(F14,1))=High,UnitCostHigh,UnitCostSpecified)),MATCH(UPPER(LEFT(F14,LEN(F14)-1)),CostCode,0))) -> 0 | H14: =G14*E14 -> 0 | J14: =H14*I14 -> 0 | K14: =+H14*(1-I14) -> 0
B15: Soil cover - excavate,haul,spread&compact | D15: m3 | F15: SB1L | G15: 4.3 | H15: 0 | J15: 0 | K15: 0
B16: Rock cover - excavate,haul & spread | D16: m3 | F16: =NA() ->  | G16: 0 | H16: 0 | J16: 0 | K16: 0
B17: Excavate downslope drainage channel & chute | D17: m3 | F17: =NA() ->  | G17: 0 | H17: 0 | J17: 0 | K17: 0
B18: Rip rap drainage channel and chute | D18: m3 | F18: =NA() ->  | G18: 0 | H18: 0 | J18: 0 | K18: 0
B19: Vegetate | D19: ha | F19: =NA() ->  | G19: 0 | H19: 0 | J19: 0 | K19: 0
B20: Other | F20: =NA() ->  | G20: 0 | H20: 0 | J20: 0 | K20: 0
B21: VERY LOW PERMEABILITY COVER (in addition to above)
B22: Liner subgrade preparation - compact | D22: m2 | F22: =NA() ->  | G22: =IF(ISNA(F22),0,INDEX(IF(UPPER(RIGHT(F22,1))=Low,UnitCostLow, IF(UPPER(RIGHT(F22,1))=High,UnitCostHigh,UnitCostSpecified)),MATCH(UPPER(LEFT(F22,LEN(F22)-1)),CostCode,0))) -> 0 | H22: =G22*E22 -> 0 | J22: =H22*I22 -> 0 | K22: =+H22*(1-I22) -> 0
B23: Supply geomembrame | D23: m2 | F23: =NA() ->  | G23: =IF(ISNA(F23),0,INDEX(IF(UPPER(RIGHT(F23,1))=Low,UnitCostLow, IF(UPPER(RIGHT(F23,1))=High,UnitCostHigh,UnitCostSpecified)),MATCH(UPPER(LEFT(F23,LEN(F23)-1)),CostCode,0))) -> 0 | H23: =G23*E23 -> 0 | J23: 0 | K23: 0
B24: Install geomembrane | D24: m2 | F24: =NA() ->  | G24: =IF(ISNA(F24),0,INDEX(IF(UPPER(RIGHT(F24,1))=Low,UnitCostLow, IF(UPPER(RIGHT(F24,1))=High,UnitCostHigh,UnitCostSpecified)),MATCH(UPPER(LEFT(F24,LEN(F24)-1)),CostCode,0))) -> 0 | H24: =G24*E24 -> 0 | J24: 0 | K24: 0
B25: Protective cover - excavate,haul,spread&compact | D25: m3 | F25: =NA() ->  | G25: 0 | H25: 0 | J25: 0 | K25: 0
B26: Vegetate | D26: ha | F26: =NA() ->  | G26: 0 | H26: 0 | J26: 0 | K26: 0
B27: Install infiltration/seepage instrumentation | D27: allow | F27: =NA() ->  | G27: 0 | H27: 0 | J27: 0 | K27: 0
B28: CONSTRUCT DIVERSION DITCHES
B29: Excavate ditches -soil | D29: m3 | F29: =NA() ->  | G29: =IF(ISNA(F29),0,INDEX(IF(UPPER(RIGHT(F29,1))=Low,UnitCostLow, IF(UPPER(RIGHT(F29,1))=High,UnitCostHigh,UnitCostSpecified)),MATCH(UPPER(LEFT(F29,LEN(F29)-1)),CostCode,0))) -> 0 | H29: =G29*E29 -> 0 | J29: =H29*I29 -> 0 | K29: =+H29*(1-I29) -> 0
B30: Excavate ditches -rock | D30: m3 | F30: =NA() ->  | G30: =IF(ISNA(F30),0,INDEX(IF(UPPER(RIGHT(F30,1))=Low,UnitCostLow, IF(UPPER(RIGHT(F30,1))=High,UnitCostHigh,UnitCostSpecified)),MATCH(UPPER(LEFT(F30,LEN(F30)-1)),CostCode,0))) -> 0 | H30: 0 | J30: 0 | K30: 0
B31: Rip rap in channel base | D31: m3 | F31: =NA() ->  | G31: =IF(ISNA(F31),0,INDEX(IF(UPPER(RIGHT(F31,1))=Low,UnitCostLow, IF(UPPER(RIGHT(F31,1))=High,UnitCostHigh,UnitCostSpecified)),MATCH(UPPER(LEFT(F31,LEN(F31)-1)),CostCode,0))) -> 0 | H31: 0 | J31: 0 | K31: 0
B32: CONSTRUCT SEEPAGE COLLECTION POND
B33: Excavate seepage collection pond | D33: m3 | F33: =NA() ->  | G33: 0 | H33: 0 | J33: =H33*I33 -> 0 | K33: =+H33*(1-I33) -> 0
B34: Doze & spread excavated material | D34: m3 | F34: =NA() ->  | G34: 0 | H34: 0 | J34: 0 | K34: 0
B35: Vegetate spread material | D35: ha | F35: =NA() ->  | G35: 0 | H35: 0 | J35: 0 | K35: 0
B36: Bedding layer | D36: m3 | F36: =NA() ->  | G36: 0 | H36: 0 | J36: 0 | K36: 0
B37: Supply geomembrane | D37: m2 | F37: =NA() ->  | G37: 0 | H37: 0 | J37: 0 | K37: 0
B38: Install geomembrane | D38: m2 | F38: =NA() ->  | G38: 0 | H38: 0 | J38: 0 | K38: 0
B39: Erosion protection layer | D39: m3 | F39: =NA() ->  | G39: 0 | H39: 0 | J39: 0 | K39: 0
B40: INSTALL GROUNDWATER COLLECTION SYSTEM
B41: Excavate/install sumps | D41: m3 | F41: =NA() ->  | G41: =IF(ISNA(F41),0,INDEX(IF(UPPER(RIGHT(F41,1))=Low,UnitCostLow, IF(UPPER(RIGHT(F41,1))=High,UnitCostHigh,UnitCostSpecified)),MATCH(UPPER(LEFT(F41,LEN(F41)-1)),CostCode,0))) -> 0 | H41: =G41*E41 -> 0 | J41: =H41*I41 -> 0 | K41: =+H41*(1-I41) -> 0
B42: Install pumping wells | D42: m3 | F42: =NA() ->  | G42: 0 | H42: 0 | J42: 0 | K42: 0
B43: Install pumps/pipelines/power supply | D43: allow | F43: =NA() ->  | G43: 0 | H43: 0 | J43: 0 | K43: 0
B44: RELOCATE DUMPS
B45: Load, haul, dump or doze | D45: m3 | F45: SC3L | G45: =IF(ISNA(F45),0,INDEX(IF(UPPER(RIGHT(F45,1))=Low,UnitCostLow, IF(UPPER(RIGHT(F45,1))=High,UnitCostHigh,UnitCostSpecified)),MATCH(UPPER(LEFT(F45,LEN(F45)-1)),CostCode,0))) -> 8.9 | H45: =G45*E45 -> 0 | J45: =H45*I45 -> 0 | K45: =+H45*(1-I45) -> 0
B46: Add lime | D46: tonne | F46: =NA() ->  | G46: =IF(ISNA(F46),0,INDEX(IF(UPPER(RIGHT(F46,1))=Low,UnitCostLow, IF(UPPER(RIGHT(F46,1))=High,UnitCostHigh,UnitCostSpecified)),MATCH(UPPER(LEFT(F46,LEN(F46)-1)),CostCode,0))) -> 0 | H46: =G46*E46 -> 0 | J46: =H46*I46 -> 0 | K46: =+H46*(1-I46) -> 0
B47: Contour reclaimed area | D47: ha | F47: =NA() ->  | G47: =IF(ISNA(F47),0,INDEX(IF(UPPER(RIGHT(F47,1))=Low,UnitCostLow, IF(UPPER(RIGHT(F47,1))=High,UnitCostHigh,UnitCostSpecified)),MATCH(UPPER(LEFT(F47,LEN(F47)-1)),CostCode,0))) -> 0 | H47: =G47*E47 -> 0 | J47: =H47*I47 -> 0 | K47: =+H47*(1-I47) -> 0
B48: Other | D48: allow | F48: =NA() ->  | G48: 20000 | H48: =G48*E48 -> 0 | J48: =H48*I48 -> 0 | K48: =+H48*(1-I48) -> 0
B49: SPECIALIZED ITEMS
B50: Install permanent instrumentation | D50: allow | F50: Ea | G50: 50000 | H50: =G50*E50 -> 0 | J50: =H50*I50 -> 0 | K50: =+H50*(1-I50) -> 0
B51: Install permanent instrumentation, drilling | D51: each | F51: =NA() ->  | G51: =IF(ISNA(F51),0,INDEX(IF(UPPER(RIGHT(F51,1))=Low,UnitCostLow, IF(UPPER(RIGHT(F51,1))=High,UnitCostHigh,UnitCostSpecified)),MATCH(UPPER(LEFT(F51,LEN(F51)-1)),CostCode,0))) -> 0 | H51: =G51*E51 -> 0 | J51: =H51*I51 -> 0 | K51: =+H51*(1-I51) -> 0
B52: TREAT ROCK PILE SEEPAGE - see "Water Management"
B53: HEAP LEACH SEEPAGE TREATMENT - Cyanide Detox
B54: Cyanide destruction water treatment pumping | D54: m3 | F54: =NA() ->  | G54: =IF(ISNA(F54),0,INDEX(IF(UPPER(RIGHT(F54,1))=Low,UnitCostLow, IF(UPPER(RIGHT(F54,1))=High,UnitCostHigh,UnitCostSpecified)),MATCH(UPPER(LEFT(F54,LEN(F54)-1)),CostCode,0))) -> 0 | H54: =G54*E54 -> 0 | J54: =H54*I54 -> 0 | K54: =+H54*(1-I54) -> 0
B55: Reagents | D55: tonnes | F55: =NA() ->  | G55: =IF(ISNA(F55),0,INDEX(IF(UPPER(RIGHT(F55,1))=Low,UnitCostLow, IF(UPPER(RIGHT(F55,1))=High,UnitCostHigh,UnitCostSpecified)),MATCH(UPPER(LEFT(F55,LEN(F55)-1)),CostCode,0))) -> 0 | H55: =G55*E55 -> 0 | J55: =H55*I55 -> 0 | K55: =+H55*(1-I55) -> 0
B56: Electrician/mechanic to maintain treatment plant | D56: allow | F56: =NA() ->  | G56: =IF(ISNA(F56),0,INDEX(IF(UPPER(RIGHT(F56,1))=Low,UnitCostLow, IF(UPPER(RIGHT(F56,1))=High,UnitCostHigh,UnitCostSpecified)),MATCH(UPPER(LEFT(F56,LEN(F56)-1)),CostCode,0))) -> 0 | H56: =G56*E56 -> 0 | J56: =H56*I56 -> 0 | K56: =+H56*(1-I56) -> 0
B57: Equipment maintenance and parts | D57: allow | F57: =NA() ->  | G57: =IF(ISNA(F57),0,INDEX(IF(UPPER(RIGHT(F57,1))=Low,UnitCostLow, IF(UPPER(RIGHT(F57,1))=High,UnitCostHigh,UnitCostSpecified)),MATCH(UPPER(LEFT(F57,LEN(F57)-1)),CostCode,0))) -> 0 | H57: =G57*E57 -> 0 | J57: =H57*I57 -> 0 | K57: =+H57*(1-I57) -> 0
G58: Annual treatment costs | H58: =SUM(H54:H57)+0.0001 -> 0.0001
B59: Number of years of treatment | D59: years
G60: Total treatment costs | H60: =H58*E59 -> 0 | K60: =H60 -> 0
B61: HEAP LEACH SEEPAGE TREATMENT - ARD/ML**
B62: Upgrade/modify pumping system - report to WTP | D62: allow | F62: =NA() ->  | G62: =IF(ISNA(F62),0,INDEX(IF(UPPER(RIGHT(F62,1))=Low,UnitCostLow, IF(UPPER(RIGHT(F62,1))=High,UnitCostHigh,UnitCostSpecified)),MATCH(UPPER(LEFT(F62,LEN(F62)-1)),CostCode,0))) -> 0 | H62: =G62*E62 -> 0 | K62: =H62 -> 0
G63: Total | H63: =SUM(H5:H51)+H60+H62+0.0001 -> 57142.5001 | J63: =SUM(J5:J51)+J60+J62 -> 57142.5 | K63: =SUM(K5:K51)+K60+K62 -> 0
G64: % of Total | J64: =J63/H63 -> 0.9999999982 | K64: =K63/H63 -> 0
B66: * For construction of passive treatment system refer to "Water Management". ARD/ML seepage treatment becomes post-closure water treatment cost
B67: **Heap leach ARD/ML seepage treatment becomes post-closure water treatment cost

Sheet Chemicals
A1: 1 | B1: Chemicals/Soil Area Name:
B3: Note: The procedures, equipment and packaging for clean up and removal of chemicals or contaminated soils are highly dependent on the nature of the chemicals and their existing state of containment. Government guidelines should be consulted on an individual chemical basis. Any estimate made here should be considered very rough unless specific evaluations have been conducted.
B4: ACTIVITY/MATERIAL | C4: Notes | D4: Units | E4: Quantity | F4: Cost Code | G4: Unit Cost | H4: Cost | I4: % Land | J4: Land Cost | K4: Water Cost
B5: HAZARDOUS MATERIALS AUDIT
B6: Hazardous materials audit | C6: Not required | D6: allow | F6: =NA() ->  | G6: 25000 | H6: =G6*E6 -> 0 | J6: =H6*I6 -> 0 | K6: =+H6*(1-I6) -> 0
B7: BUILDING DECONTAMINATION & CONSOLIDATION OF HAZARDOUS MATERIALS
B8: Environmental technician/coordinator | D8: mandays | F8: =NA() ->  | G8: =IF(ISNA(F8),0,INDEX(IF(UPPER(RIGHT(F8,1))=Low,UnitCostLow, IF(UPPER(RIGHT(F8,1))=High,UnitCostHigh,UnitCostSpecified)),MATCH(UPPER(LEFT(F8,LEN(F8)-1)),CostCode,0))) -> 0 | H8: =G8*E8 -> 0 | J8: =H8*I8 -> 0 | K8: =+H8*(1-I8) -> 0
B9: Drain residual fuel from tanks | C9: BM-010 | D9: each | E9: 6 | F9: TMAC | G9: 265 | H9: 1590 | I9: 0.5 | J9: 795 | K9: 795
B10: Clean containment liners | C10: BM-010, BM -013 & BM -030 | D10: m2 | E10: =4406+3800+2500 -> 10706 | F10: TMAC | G10: 0.41 | H10: =G10*E10 -> 4389.46 | I10: 0.5 | J10: =H10*I10 -> 2194.73 | K10: =+H10*(1-I10) -> 2194.73
B11: Decontaminate maintenance shop | D11: mandays | F11: =NA() ->  | G11: =IF(ISNA(F11),0,INDEX(IF(UPPER(RIGHT(F11,1))=Low,UnitCostLow, IF(UPPER(RIGHT(F11,1))=High,UnitCostHigh,UnitCostSpecified)),MATCH(UPPER(LEFT(F11,LEN(F11)-1)),CostCode,0))) -> 0 | H11: 0 | J11: 0 | K11: 0
B12: Decontaminate sewage treatment plant | C12: BM-015 | D12: LS | E12: 1 | F12: TMAC | G12: 667.63 | H12: 667.63 | I12: 0.5 | J12: 333.815 | K12: 333.815
B13: Decontaminate Water Discharge Line | C13: BM-043 | D13: LS | E13: 1 | F13: TMAC | G13: 667.63 | H13: =G13*E13 -> 667.63 | I13: 0.5 | J13: =H13*I13 -> 333.815 | K13: =+H13*(1-I13) -> 333.815
B14: Decontaminate bulk fuel storage | C14: BM-010 | D14: each | E14: 6 | F14: TMAC | G14: 1186.71 | H14: 7120.26 | I14: 0.5 | J14: 3560.13 | K14: 3560.13
B15: Decontaminate Process Plant | C15: BM-002 | D15: M3 | E15: 4.16 | F15: TMAC | G15: 2699.56 | H15: 11230.1696 | I15: 0.5 | J15: 5615.0848 | K15: 5615.0848
B16: Decontaminate offices/warehouse/accom | D16: m2 | F16: BDAL | G16: 25.6 | H16: 0 | J16: 0 | K16: 0
B17: Removal of asbestos siding on buildings | D17: m2 | F17: BDAL | G17: 25.6 | H17: 0 | J17: 0 | K17: 0
B18: Removal of friable asbestos on equipment | D18: m2 | F18: =NA() ->  | G18: 0 | H18: 0 | J18: 0 | K18: 0
B19: Other | F19: =NA() ->  | G19: 0 | H19: 0 | J19: 0 | K19: 0
B20: HAZARDOUS MATERIALS REMOVAL
B21: Waste oils | D21: litre | F21: orl | G21: =IF(ISNA(F21),0,INDEX(IF(UPPER(RIGHT(F21,1))=Low,UnitCostLow, IF(UPPER(RIGHT(F21,1))=High,UnitCostHigh,UnitCostSpecified)),MATCH(UPPER(LEFT(F21,LEN(F21)-1)),CostCode,0))) -> 0.43 | H21: =G21*E21 -> 0 | J21: =H21*I21 -> 0 | K21: =+H21*(1-I21) -> 0
B22: Waste fuel | C22: BM-010 | D22: litre | E22: 75000 | F22: orl | G22: 0.43 | H22: 32250 | I22: 0.5 | J22: 16125 | K22: 16125
B23: Waste batteries | D23: allow | F23: AE | G23: 3000 | H23: 0 | J23: 0 | K23: 0
B24: Assay & environmental lab reagents | D24: kg | F24: =NA() ->  | G24: 25 | H24: 0 | J24: 0 | K24: 0
B25: Machine shop paints, solvents etc | D25: litre | F25: AE | G25: 10000 | H25: 0 | J25: 0 | K25: 0
B26: Glycol | D26: litre | F26: AE | G26: 20000 | H26: 0 | J26: =H26*I26 -> 0 | K26: =+H26*(1-I26) -> 0
B27: Process reagents | C27: BM-002 | D27: m3 | E27: 5.4 | F27: TMAC | G27: =72.73+15.37 -> 88.1 | H27: =G27*E27 -> 475.74 | I27: 0.5 | J27: =H27*I27 -> 237.87 | K27: =+H27*(1-I27) -> 237.87
B28: Nuclear sources | D28: allow | F28: =NA() ->  | G28: =IF(ISNA(F28),0,INDEX(IF(UPPER(RIGHT(F28,1))=Low,UnitCostLow, IF(UPPER(RIGHT(F28,1))=High,UnitCostHigh,UnitCostSpecified)),MATCH(UPPER(LEFT(F28,LEN(F28)-1)),CostCode,0))) -> 0 | H28: 0 | J28: =H28*I28 -> 0 | K28: =+H28*(1-I28) -> 0
B29: Other hazardous materials | D29: allow | F29: AE | G29: 20000 | H29: =G29*E29 -> 0 | J29: =H29*I29 -> 0 | K29: =+H29*(1-I29) -> 0
B30: HAZARDOUS MATERIALS
B31: Transportation to disposal facility | D31: allow | F31: ea | G31: 10000 | H31: =G31*E31 -> 0 | I31: 0.5 | J31: =H31*I31 -> 0 | K31: =+H31*(1-I31) -> 0
B32: Disposal fees | D32: allow | F32: ea | G32: 20000 | H32: =G32*E32 -> 0 | I32: 0.5 | J32: =H32*I32 -> 0 | K32: =+H32*(1-I32) -> 0
B33: Other | D33: allow | F33: ea | G33: 40000 | H33: =G33*E33 -> 0 | I33: 0.5 | J33: =H33*I33 -> 0 | K33: =+H33*(1-I33) -> 0
B34: CONTAMINATED SOILS
B35: Contam. soil investigation - Phase 1 | D35: each | E35: 1 | F35: CS1L | G35: =IF(ISNA(F35),0,INDEX(IF(UPPER(RIGHT(F35,1))=Low,UnitCostLow, IF(UPPER(RIGHT(F35,1))=High,UnitCostHigh,UnitCostSpecified)),MATCH(UPPER(LEFT(F35,LEN(F35)-1)),CostCode,0))) -> 7500 | H35: =G35*E35 -> 7500 | I35: 0.5 | J35: =H35*I35 -> 3750 | K35: =+H35*(1-I35) -> 3750
B36: Contam. soil investigation - Phase 2 | C36: More money required for INAC to complete an ESA program | D36: allow | E36: 1 | F36: EA | G36: 100000 | H36: 100000 | I36: 0.5 | J36: 50000 | K36: 50000
B37: CONTAMINATED SOIL REMOVAL
B38: Excavate and transport to Underground | C38: BM-010 & BM-013 | D38: m3 | E38: =1140+2643.6 -> 3783.6 | F38: TMAC | G38: 72.73 | H38: =G38*E38 -> 275181.228 | I38: 0.5 | J38: =H38*I38 -> 137590.614 | K38: =+H38*(1-I38) -> 137590.614
B39: Place hydrocarbon underground | C39: BM-010 & BM-013 | D39: m3 | E39: =1140+2643.6 -> 3783.6 | F39: TMAC | G39: 15.37 | H39: 58153.932 | I39: 0.5 | J39: 29076.966 | K39: 29076.966
B40: Reagents/stabilizing agent | C40: BM-030 de-icier impacted soil to underground (consolidate liner cover, containerize and haul) | D40: m3 | E40: =1500+5.4 -> 1505.4 | F40: TMAC | G40: =2.75+72.73+15.37 -> 90.85 | H40: =G40*E40 -> 136765.59 | I40: 0.5 | J40: =H40*I40 -> 68382.795 | K40: =+H40*(1-I40) -> 68382.795
B41: Excavate and transport to offsite facility | D41: m3 | F41: est. | G41: 1000 | H41: 0 | I41: 0.5 | J41: 0 | K41: 0
B42: Sludge from Oil/Water Separator | D42: m3 | E42: 4 | F42: TMAC | G42: 32.8 | H42: 131.2 | I42: 0.5 | J42: =H42*I42 -> 65.6 | K42: =+H42*(1-I42) -> 65.6
B43: CONTAMINATED SOIL VERY LOW PERMEABILITY COVER
B44: Supply geomembrame, HDPE, ES3, GCL | D44: m2 | F44: =NA() ->  | G44: =IF(ISNA(F44),0,INDEX(IF(UPPER(RIGHT(F44,1))=Low,UnitCostLow, IF(UPPER(RIGHT(F44,1))=High,UnitCostHigh,UnitCostSpecified)),MATCH(UPPER(LEFT(F44,LEN(F44)-1)),CostCode,0))) -> 0 | H44: =G44*E44 -> 0 | J44: =H44*I44 -> 0 | K44: =+H44*(1-I44) -> 0
B45: Upper and lower bedding layers | D45: m3 | F45: =NA() ->  | G45: 0 | H45: 0 | J45: 0 | K45: 0
B46: Install geomembrane, HDPE, ES3, GCL | D46: m2 | F46: =NA() ->  | G46: 0 | H46: 0 | J46: 0 | K46: 0
B47: Erosion protection layer | D47: m3 | F47: =NA() ->  | G47: 0 | H47: 0 | J47: 0 | K47: 0
B48: Vegetate | D48: m2 | F48: =NA() ->  | G48: 0 | H48: 0 | J48: 0 | K48: 0
B49: Install infiltration/seepage instrumentation | D49: allow | F49: =NA() ->  | G49: 0 | H49: 0 | J49: =H49*I49 -> 0 | K49: =+H49*(1-I49) -> 0
B50: Other | F50: =NA() ->  | G50: 0 | H50: 0 | J50: =H50*I50 -> 0 | K50: =+H50*(1-I50) -> 0
B51: OTHER
F52: =NA() ->  | G52: =IF(ISNA(F52),0,INDEX(IF(UPPER(RIGHT(F52,1))=Low,UnitCostLow, IF(UPPER(RIGHT(F52,1))=High,UnitCostHigh,UnitCostSpecified)),MATCH(UPPER(LEFT(F52,LEN(F52)-1)),CostCode,0))) -> 0 | H52: =G52*E52 -> 0 | J52: =H52*I52 -> 0 | K52: =+H52*(1-I52) -> 0
G53: Total | H53: =SUM(H6:H52)+0.0001 -> 636122.8397 | J53: =SUM(J6:J52) -> 318061.4198 | K53: =SUM(K6:K52) -> 318061.4198
G54: % of Total | J54: =J53/H53 -> 0.4999999999 | K54: =K53/H53 -> 0.4999999999

Sheet Bldgs & Equip
A1: 1 | B1: Building / Equip Name: | C1: Boston Mine | G1: Bldg / Equip #: | H1: 1
B3: ACTIVITY/MATERIAL | C3: Notes | D3: Units | E3: Quantity | F3: Cost Code | G3: Unit Cost | H3: Cost | I3: % Land | J3: Land Cost | K3: Water Cost
B4: DISPOSE MOBILE EQUIPMENT
B5: Decontaminate and ship off-site | D5: allow | F5: =NA() ->  | G5: =IF(ISNA(F5),0,INDEX(IF(UPPER(RIGHT(F5,1))=Low,UnitCostLow, IF(UPPER(RIGHT(F5,1))=High,UnitCostHigh,UnitCostSpecified)),MATCH(UPPER(LEFT(F5,LEN(F5)-1)),CostCode,0))) -> 0 | H5: =G5*E5 -> 0 | J5: =H5*I5 -> 0 | K5: =+H5*(1-I5) -> 0
B6: Decontaminate and dispose on-site | D6: manhours | F6: mechl | G6: =IF(ISNA(F6),0,INDEX(IF(UPPER(RIGHT(F6,1))=Low,UnitCostLow, IF(UPPER(RIGHT(F6,1))=High,UnitCostHigh,UnitCostSpecified)),MATCH(UPPER(LEFT(F6,LEN(F6)-1)),CostCode,0))) -> 49 | H6: =G6*E6 -> 0 | I6: 1 | J6: =H6*I6 -> 0 | K6: =+H6*(1-I6) -> 0
B7: Relocate Containers to Roberts Bay | C7: BM-034 (3) | D7: ea | E7: 3 | F7: TMAC | G7: 1345 | H7: =G7*E7 -> 4035 | I7: 1 | J7: =H7*I7 -> 4035 | K7: =+H7*(1-I7) -> 0
B8: Relocate Trailers to Roberts Bay | C8: BM-034 | D8: m3 | E8: 112 | F8: TMAC | G8: 19.15 | H8: 2144.8 | I8: 1 | J8: 2144.8 | K8: 0
B10: Other | F10: =NA() ->  | G10: =IF(ISNA(F10),0,INDEX(IF(UPPER(RIGHT(F10,1))=Low,UnitCostLow, IF(UPPER(RIGHT(F10,1))=High,UnitCostHigh,UnitCostSpecified)),MATCH(UPPER(LEFT(F10,LEN(F10)-1)),CostCode,0))) -> 0 | H10: =G10*E10 -> 0 | J10: 0 | K10: 0
B11: REMOVE BUILDINGS
B12: Accomodation Complex | C12: BM-018 Demolition | D12: m3 | E12: =13843+1000 -> 14843 | F12: TMAC | G12: 13.12 | H12: =G12*E12 -> 194740.16 | I12: 1 | J12: 194740.16 | K12: 0
C13: BM-018 elec/mech discommissioning | D13: each | E13: 300 | F13: TMAC | G13: 679.52 | H13: 203856 | I13: 1 | J13: 203856 | K13: 0
C14: BM-018 - Containerization and disposal | D14: m3 | E14: =23330 -> 23330 | F14: TMAC | G14: 13.49 | H14: =G14*E14 -> 314721.7 | I14: 1 | J14: =H14*I14 -> 314721.7 | K14: =+H14*(1-I14) -> 0 | M14: Quantity amended to SRK amount
B15: Process Facilities | C15: BM-002 includes Dismantling and Demolition of Mill, Crusher and Process Plant | D15: LS | E15: 1 | F15: TMAC | G15: =200000+100000 -> 300000 | H15: 300000 | I15: 1 | J15: 300000 | K15: 0
C16: BM-020 demolition only | D16: m3 | E16: 198800 | F16: TMAC | G16: 13.12 | H16: 2608256 | I16: 1 | J16: 2608256 | K16: 0
C17: BM-020 office decommissioning | D17: each | E17: 2 | F17: TMAC | G17: 679.52 | H17: =G17*E17 -> 1359.04 | I17: 1 | J17: =H17*I17 -> 1359.04 | K17: =+H17*(1-I17) -> 0
C18: Bm-020 Collect surface debris | D18: m2 | E18: 14000 | F18: TMAC | G18: 0.37 | H18: =G18*E18 -> 5180 | I18: 1 | J18: =H18*I18 -> 5180 | K18: =+H18*(1-I18) -> 0
C19: BM-020 transfer to landfill | D19: m3 | E19: =198800*0.05 -> 9940 | F19: TMAC | G19: =10.23+3.26 -> 13.49 | H19: =G19*E19 -> 134090.6 | I19: 1 | J19: =H19*I19 -> 134090.6 | K19: =+H19*(1-I19) -> 0 | M19: update unit rate to reflect containerization and transfer. Quantity amended to 5% of total building volume where processing is done in a simple structure with only primary process equipment. Also includes some allowance for surface debris transfer.
B20: Offices, Repair, Lab, Warehouse | C20: BM-004, BM-005,BM-006, BM-007 demo, load, haul and tip at landfill | D20: m3 | E20: =300+90+90+90 -> 570 | F20: TMAC | G20: =13.12+10.23+3.26 -> 26.61 | H20: 15167.7 | I20: 1 | J20: 15167.7 | K20: 0
C21: decommission equipment | D21: each | E21: 6 | F21: TMAC | G21: 679.52 | H21: =G21*E21 -> 4077.12 | I21: 1 | J21: =H21*I21 -> 4077.12 | K21: =+H21*(1-I21) -> 0
B22: Storage Facilites | D22: m2 | H22: =F22*G22 -> 0 | I22: 1 | J22: 0 | K22: 0
B23: Water and Wastewater Treatment Facilities | C23: BM-011 dismantle equipment | D23: ea | E23: 1 | F23: TMAC | G23: 1369 | H23: =G23*E23 -> 1369 | I23: 1 | J23: 1369 | K23: 0
C24: BM-011 dismantle and haul to landfill | D24: m3 | E24: 150 | F24: TMAC | G24: 59.95 | H24: 8992.5 | I24: 1 | J24: 8992.5 | K24: 0
B25: Fire Water Tank | C25: BM-017 demolition | D25: m3 | E25: 74.42 | F25: TMAC | G25: 13.12 | H25: =G25*E25 -> 976.3904 | I25: 1 | J25: =H25*I25 -> 976.3904 | K25: =+H25*(1-I25) -> 0
C26: BM-017 dismantle into cut for haulage | D26: each | E26: 1 | F26: TMAC | G26: 74212 | H26: =G26*E26 -> 74212 | I26: 1 | J26: =H26*I26 -> 74212 | K26: =+H26*(1-I26) -> 0
C27: BM-017 elec/mech discommissioning | D27: each | E27: 2 | F27: TMAC | G27: 1328 | H27: =G27*E27 -> 2656 | I27: 1 | J27: =H27*I27 -> 2656 | K27: =+H27*(1-I27) -> 0
C28: BM-017 consolidate and haul to landfill | D28: m3 | E28: =37+2.2 -> 39.2 | F28: TMAC | G28: =10.23+3.26 -> 13.49 | H28: =G28*E28 -> 528.808 | I28: 1 | J28: =H28*I28 -> 528.808 | K28: =+H28*(1-I28) -> 0
B29: Power Plant | C29: BM-003 includes dismantling/demolition and haulage to Landfill | D29: m3 | E29: 3151 | F29: TMAC | G29: =13.12+10.23+3.26 -> 26.61 | H29: 83848.11 | I29: 1 | J29: 83848.11 | K29: 0
C30: BM-003 dismantle equipment | D30: ea | E30: 4 | F30: TMAC | G30: 784.27 | H30: =G30*E30 -> 3137.08 | I30: 1 | J30: =H30*I30 -> 3137.08 | K30: =+H30*(1-I30) -> 0
C31: BM-003 Prep equipment for offsite shipment | D31: LS | E31: 1 | F31: TMAC | G31: 50000 | H31: 50000 | I31: 1 | J31: =H31*I31 -> 50000 | K31: =+H31*(1-I31) -> 0
C32: Dismantle, prep and haul stacks for offsite disposal | D32: lm | E32: 40 | F32: TMAC | G32: =136.3+627.24+116 -> 879.54 | H32: =G32*E32 -> 35181.6 | I32: 1 | J32: =H32*I32 -> 35181.6 | K32: =+H32*(1-I32) -> 0
B33: Communication Tower | D33: m2 | F33: brs1h | G33: =IF(ISNA(F33),0,INDEX(IF(UPPER(RIGHT(F33,1))=Low,UnitCostLow, IF(UPPER(RIGHT(F33,1))=High,UnitCostHigh,UnitCostSpecified)),MATCH(UPPER(LEFT(F33,LEN(F33)-1)),CostCode,0))) -> 65 | H33: =G33*E33 -> 0 | I33: 1 | J33: =H33*I33 -> 0 | K33: =+H33*(1-I33) -> 0
B34: U/G Heating Plant | D34: m2 | F34: =NA() ->  | G34: 0 | H34: 0 | I34: 1 | J34: 0 | K34: 0
B35: Emulsion Plant | D35: m2 | F35: =NA() ->  | G35: =IF(ISNA(F35),0,INDEX(IF(UPPER(RIGHT(F35,1))=Low,UnitCostLow, IF(UPPER(RIGHT(F35,1))=High,UnitCostHigh,UnitCostSpecified)),MATCH(UPPER(LEFT(F35,LEN(F35)-1)),CostCode,0))) -> 0 | H35: 0 | I35: 1 | J35: 0 | K35: 0
B36: AN Storage Facility | D36: m2 | F36: brs1s | G36: 128 | H36: 0 | I36: 1 | J36: =H36*I36 -> 0 | K36: =+H36*(1-I36) -> 0
B37: Warehouse, Shops and Other | C37: BM-009, BM-012 dismantle and transfer to Landfill | D37: m3 | E37: =2250+150 -> 2400 | F37: TMAC | G37: =13.12+10.23+3.26 -> 26.61 | H37: 63864 | I37: 1 | J37: 63864 | K37: 0
B38: Laydown area and Core Pad | C38: BM-014 & BM-019 surface clean up | D38: m2 | E38: =10000+9300 -> 19300 | F38: TMAC | G38: 0.37 | H38: 7141 | I38: 1 | J38: 7141 | K38: 0
C39: Post removals | D39: ea | E39: 10 | F39: TMAC | G39: 411.17 | H39: =G39*E39 -> 4111.7 | I39: 1 | J39: =H39*I39 -> 4111.7 | K39: =+H39*(1-I39) -> 0
C40: BM-019 consolidating core boxes | D40: each | E40: 500 | F40: TMAC | G40: 11.36 | H40: =G40*E40 -> 5680 | I40: 1 | J40: =H40*I40 -> 5680 | K40: =+H40*(1-I40) -> 0 | M40: Amended to reflect correction in work type and quantity
C41: BM-014 & BM-019 debris haul and dispose of at landfill | D41: m3 | E41: =6+5.6 -> 11.6 | F41: TMAC | G41: =10.23+2.36 -> 12.59 | H41: =G41*E41 -> 146.044 | I41: 1 | J41: =H41*I41 -> 146.044 | K41: =+H41*(1-I41) -> 0 | M41: Amended quantity to reflect change in item 40
B42: Fuel tanks | C42: BM-010 | D42: ea | E42: 6 | F42: TMAC | G42: 74500 | H42: 447000 | I42: 0.5 | J42: 223500 | K42: 223500 | M42: rounded to the nearest $500
B43: Remove containment liner | C43: BM-010, BM-030 & BM-013 | D43: m2 | E43: =2500+3800+3*E44 -> 29001.6 | F43: TMAC | G43: 0.57 | H43: =G43*E43 -> 16530.912 | I43: 0.5 | J43: 8265.456 | K43: 8265.456
B44: Excavate containment area | C44: BM-010 & BM-013 | D44: m3 | E44: =2280+5287.2 -> 7567.2 | F44: TMAC | G44: 2.75 | H44: =G44*E44 -> 20809.8 | I44: 0.5 | J44: 10404.9 | K44: 10404.9
B45: Fuel tank piping and containment structure | C45: BM-010 includes load and transport to landfill | D45: m3 | E45: =23.74+63.39 -> 87.13 | F45: TMAC | G45: =10.23+14.08 -> 24.31 | H45: =G45*E45 -> 2118.1303 | I45: 0.5 | J45: 1059.06515 | K45: 1059.06515
B46: Water Discharge Line | C46: BM-043 | D46: m | E46: 282 | F46: TMAC | G46: 10.79 | H46: 3042.78 | I46: 1 | J46: 3042.78 | K46: 0
B47: Water Discharge Line -electrical | C47: BM-43 | D47: ea | E47: 2 | F47: TMAC | G47: 679.52 | H47: 1359.04 | I47: 1 | J47: 1359.04 | K47: 0
B48: Water Discharge | C48: BM-043 demo and landfill | D48: m3 | E48: 13.8 | F48: TMAC | G48: =10.23+3.26 -> 13.49 | H48: 186.162 | I48: 1 | J48: 186.162 | K48: 0
B49: Contact Ponds decommissioning | C49: BM-021, BM-025, BM-027 & BM-032 | D49: m3 | E49: =180+1.2+1.2+1.6 -> 184 | F49: TMAC | G49: =10.23+3.26 -> 13.49 | H49: =G49*E49 -> 2482.16 | I49: 1 | J49: =H49*I49 -> 2482.16 | K49: =+H49*(1-I49) -> 0
B50: Airstrip lighting, navigation, electrician | C50: Tower fixtures | D50: ea | E50: 10 | F50: TMAC | G50: 68.15 | H50: 681.5 | I50: 1 | J50: 681.5 | K50: 0
B51: Airstrip lighting, navigation, mechanical | C51: Tower fixtures and equipment | D51: ea | E51: 2 | F51: TMAC | G51: 374.34 | H51: 748.68 | I51: 1 | J51: 748.68 | K51: 0
B52: Break foundation slabs | D52: m2 | F52: brcs | G52: =IF(ISNA(F52),0,INDEX(IF(UPPER(RIGHT(F52,1))=Low,UnitCostLow, IF(UPPER(RIGHT(F52,1))=High,UnitCostHigh,UnitCostSpecified)),MATCH(UPPER(LEFT(F52,LEN(F52)-1)),CostCode,0))) -> 6 | H52: =G52*E52 -> 0 | I52: 1 | J52: =H52*I52 -> 0 | K52: =+H52*(1-I52) -> 0
B53: Consolidate & dump boneyard debris | D53: allow | F53: brs1l | G53: 45 | H53: 0 | I53: 1 | J53: 0 | K53: 0
B54: Worker Dry | C54: BM-008 Demo, prep and haul waste to landfill | D54: m3 | E54: 682 | F54: TMAC | G54: =13.12+10.23+3.26 -> 26.61 | H54: =G54*E54 -> 18148.02 | I54: 1 | J54: =H54*I54 -> 18148.02 | K54: =+H54*(1-I54) -> 0
C55: BM-008 decommission equipment | D55: ea | E55: 3 | F55: TMAC | G55: 679.52 | H55: =G55*E55 -> 2038.56 | I55: 1 | J55: =H55*I55 -> 2038.56 | K55: =+H55*(1-I55) -> 0
B56: Potable WTP & STP | C56: BM-015 & BM-016 Decon electrical | D56: ea | E56: =105+2 -> 107 | F56: TMAC | G56: 679.52 | H56: 72708.64 | I56: 1 | J56: 72708.64 | K56: 0
C57: BM-015 & BM -016 demo and landfill | D57: m3 | E57: =75+7.5 -> 82.5 | F57: TMAC | G57: =13.12+10.23+3.26 -> 26.61 | H57: =G57*E57 -> 2195.325 | I57: 1 | J57: =H57*I57 -> 2195.325 | K57: =+H57*(1-I57) -> 0
B58: WTP Mine Water | D58: m2 | F58: brs1l | G58: 45 | H58: 0 | I58: 1 | J58: 0 | K58: 0
B59: Water Intake | D59: m2 | F59: brcs | G59: 6 | H59: 0 | I59: 1 | J59: 0 | K59: 0
B60: Airstrip/Apron and Helipad | C60: BM-029, BM-030 and BM-034 clean up | D60: m2 | E60: =1540+60960+6000 -> 68500 | F60: TMAC | G60: 0.37 | H60: =G60*E60 -> 25345 | I60: 1 | J60: =H60*I60 -> 25345 | K60: =+H60*(1-I60) -> 0
C61: demo heli shack includes containerization and haul to landfill | D61: m3 | E61: 45 | F61: TMAC | G61: =13.12+10.23+3.26 -> 26.61 | H61: 1197.45 | I61: 1 | J61: 1197.45 | K61: 0
C62: Remove lighting | D62: ea | E62: 70 | F62: TMAC | G62: 42.47 | H62: =G62*E62 -> 2972.9 | I62: 1 | J62: =H62*I62 -> 2972.9 | K62: =+H62*(1-I62) -> 0
C63: BM-029, BM-030 and BM-034 includes disposal in landfill | D63: m3 | E63: =51.519+25.984+36.576 -> 114.079 | F63: TMAC | G63: =10.23+3.26 -> 13.49 | H63: =G63*E63 -> 1538.92571 | I63: 1 | J63: =H63*I63 -> 1538.92571 | K63: =+H63*(1-I63) -> 0
B64: Other | C64: clean up general areas | D64: m2 | E64: 1100 | F64: TMAC | G64: 0.37 | H64: 407 | I64: 1 | J64: 407 | K64: 0
C65: General Area debris haulage and disposal in landfill | D65: m2 | E65: 1100 | F65: TMAC | G65: 0.15 | H65: =G65*E65 -> 165 | I65: 1 | J65: =H65*I65 -> 165 | K65: =+H65*(1-I65) -> 0
C66: Seacan landfill placement (double SRK volume) | D66: m3 | E66: =1129.5 -> 1129.5 | F66: TMAC | G66: 86.72 | H66: 97950.24 | I66: 1 | J66: 97950.24 | K66: 0 | M66: understand that we are now not breaking down the seacans.
B67: LANDFILL FOR DEMOLITION WASTE
B68: Place rock cover | C68: BM-038 | D68: m3 | E68: 8112 | F68: TMAC | G68: 16.35 | H68: =G68*E68 -> 132631.2 | I68: 1 | J68: =H68*I68 -> 132631.2 | K68: =+H68*(1-I68) -> 0
B69: Generate rock cover | C69: BM-038 assumes 300 mm cover | D69: m3 | E69: 8112 | F69: TMAC | G69: 24.76 | H69: =G69*E69 -> 200853.12 | I69: 1 | J69: =H69*I69 -> 200853.12 | K69: =+H69*(1-I69) -> 0
B70: Final grading of landfill cover | C70: BM-038 | D70: m2 | E70: 27040 | F70: TMAC | G70: 1.23 | H70: =G70*E70 -> 33259.2 | I70: 1 | J70: 33259.2 | K70: 0
B71: Place soil cover | D71: allow | F71: =NA() ->  | H71: =G71*E71 -> 0 | J71: 0 | K71: =+H71*(1-I71) -> 0
B72: Vegetate | D72: ha | F72: =NA() ->  | G72: =IF(ISNA(F72),0,INDEX(IF(UPPER(RIGHT(F72,1))=Low,UnitCostLow, IF(UPPER(RIGHT(F72,1))=High,UnitCostHigh,UnitCostSpecified)),MATCH(UPPER(LEFT(F72,LEN(F72)-1)),CostCode,0))) -> 0 | H72: =G72*E72 -> 0 | J72: 0 | K72: 0
B73: GRADE AND CONTOUR PADS
B74: Accomodation Complex | D74: m2 | F74: AE | G74: 8.47 | H74: =G74*E74 -> 0 | I74: 0.5 | J74: 0 | K74: 0
B75: Process Facilities | D75: m2 | F75: AE | G75: 8.47 | H75: 0 | I75: 0.5 | J75: 0 | K75: 0
B76: Offices, Repair, Lab, Warehouse | D76: m2 | F76: AE | G76: 8.47 | H76: 0 | I76: 0.5 | J76: 0 | K76: 0
B77: Storage Facilites | D77: m2 | F77: AE | G77: 8.47 | H77: 0 | I77: 0.5 | J77: 0 | K77: 0
B78: Water and Wastewater Treatment Facilities | D78: m2 | F78: AE | G78: 8.47 | H78: 0 | I78: 0.5 | J78: 0 | K78: 0
B79: Power Plant | D79: m2 | F79: AE | G79: 8.47 | H79: =G79*E79 -> 0 | I79: 0.5 | J79: =H79*I79 -> 0 | K79: =+H79*(1-I79) -> 0
B80: Communication Tower | D80: m2 | F80: AE | G80: 8.47 | H80: 0 | I80: 0.5 | J80: 0 | K80: 0
B81: U/G Heating Plant | D81: m2 | F81: =NA() ->  | G81: =IF(ISNA(F81),0,INDEX(IF(UPPER(RIGHT(F81,1))=Low,UnitCostLow, IF(UPPER(RIGHT(F81,1))=High,UnitCostHigh,UnitCostSpecified)),MATCH(UPPER(LEFT(F81,LEN(F81)-1)),CostCode,0))) -> 0 | H81: 0 | I81: 0.5 | J81: 0 | K81: 0
B82: Emulsion Plant | D82: m2 | F82: =NA() ->  | G82: 0 | H82: 0 | I82: 0.5 | J82: 0 | K82: 0
B83: Warehouse, Shops and Other | D83: m2 | F83: AE | G83: 8.47 | H83: 0 | I83: 0.5 | J83: 0 | K83: 0
B84: Fuel tanks on site for bulk fuel storage | D84: m2 | F84: AE | G84: 8.47 | H84: 0 | I84: 0.5 | J84: 0 | K84: 0
B85: Fire Protection pumping station | D85: m2 | F85: AE | G85: 8.47 | H85: 0 | I85: 0.5 | J85: 0 | K85: 0
B86: Worker Dry | D86: m2 | F86: AE | G86: 8.47 | H86: 0 | I86: 0.5 | J86: 0 | K86: 0
B87: WTP & Fresh Water Pumping Station | D87: m2 | F87: AE | G87: 8.47 | H87: 0 | I87: 0.5 | J87: 0 | K87: 0
B88: WRSF Pond and Attenuation Pond Pumphouses | D88: m2 | F88: AE | G88: 8.47 | H88: 0 | I88: 0.5 | J88: 0 | K88: 0
B89: Other | C89: BM-036 Developed Areas | D89: m2 | E89: 122000 | F89: DSL | G89: 0.24 | H89: 29280 | I89: 1 | J89: 29280 | K89: 0 | M89: reduced from 0.95 to 0.24 to reflect easier grading with grader
B91: REMOVE LINED CONTAINMENT STRUCTURES
B92: Decontaminate/Remove/Dispose of Liner | C92: see Chemicals or Water Treatment | D92: m3 | F92: =NA() ->  | G92: =IF(ISNA(F92),0,INDEX(IF(UPPER(RIGHT(F92,1))=Low,UnitCostLow, IF(UPPER(RIGHT(F92,1))=High,UnitCostHigh,UnitCostSpecified)),MATCH(UPPER(LEFT(F92,LEN(F92)-1)),CostCode,0))) -> 0 | H92: =G92*E92 -> 0 | J92: =H92*I92 -> 0 | K92: =+H92*(1-I92) -> 0
B95: RECLAIM ROADS
B96: Remove culverts | D96: lm | F96: TMAC | G96: 95.76 | H96: =G96*E96 -> 0 | J96: 0 | K96: 0
B97: Remove bridges | D97: each | F97: =NA() ->  | G97: =IF(ISNA(F97),0,INDEX(IF(UPPER(RIGHT(F97,1))=Low,UnitCostLow, IF(UPPER(RIGHT(F97,1))=High,UnitCostHigh,UnitCostSpecified)),MATCH(UPPER(LEFT(F97,LEN(F97)-1)),CostCode,0))) -> 0 | H97: 0 | J97: 0 | K97: 0
B98: Grade roads | C98: BM-023, BM-037, BM-039 and BM-045 (assumes 4.1 km of road at 10 m width) | D98: ha | E98: =(0.3+1+1.3+1.5)*1000*10/100000 -> 0.41 | F98: TMAC | G98: 9400 | H98: 3854 | I98: 1 | J98: 3854 | K98: 0 | M98: Reduced to match cost associated with using a grader
B99: Grade Helipad, Airstrip and Aprons | C99: BM-029, BM-030 and BM-034 | D99: ha | E99: =(1540+60960+6000)/10000 -> 6.85 | F99: TMAC | G99: 9400 | H99: =G99*E99 -> 64390 | I99: 1 | J99: =H99*I99 -> 64390 | K99: =+H99*(1-I99) -> 0 | M99: Reduced to match cost associated with using a grader
B100: Scarify ore piles laydown area | D100: ha | F100: scfyl | G100: 4300 | H100: 0 | J100: 0 | K100: 0
B101: Vegetate | D101: allow | F101: ea | G101: 20000 | H101: 0 | J101: =H101*I101 -> 0 | K101: 0
B102: Other | D102: ha | F102: scfyh | G102: 6030 | H102: 0 | J102: =H102*I102 -> 0 | K102: 0
B103: SPECIALIZED ITEMS
B104: Dispose of misc. debris and laydown area refuse | F104: =NA() ->  | G104: =IF(ISNA(F104),0,INDEX(IF(UPPER(RIGHT(F104,1))=Low,UnitCostLow, IF(UPPER(RIGHT(F104,1))=High,UnitCostHigh,UnitCostSpecified)),MATCH(UPPER(LEFT(F104,LEN(F104)-1)),CostCode,0))) -> 0 | H104: =G104*E104 -> 0 | J104: =H104*I104 -> 0 | K104: 0
G105: Total | H105: =SUM(H5:H104)+0.0001 -> 5313366.098 | J105: =SUM(J5:J104) -> 5070136.676 | K105: =SUM(K5:K104) -> 243229.4212
G106: % of Total | J106: =J105/H105 -> 0.9542231014 | K106: =K105/H105 -> 0.04577689861
B108: Note:

Sheet ICM
A1: 1 | B1: Interim Care and Maintenance
B3: ACTIVITY/MATERIAL | C3: Notes | D3: Units | E3: Quantity | F3: Cost Code | G3: Unit Cost | H3: Cost
B4: INTERIM CARE & MAINTENANCE
B5: on-site caretaker | C5: supervisor | D5: manmonths | F5: superh | G5: =IF(ISNA(F5),0,INDEX(IF(UPPER(RIGHT(F5,1))=Low,UnitCostLow, IF(UPPER(RIGHT(F5,1))=High,UnitCostHigh,UnitCostSpecified)),MATCH(UPPER(LEFT(F5,LEN(F5)-1)),CostCode,0))) -> 91.84 | H5: =G5*E5 -> 0
B6: extra personnel | C6: one skilled labourer | D6: manmonths | F6: lab-sl | G6: 41 | H6: 0
B7: -electrician | C7: assumes water treatment still required | D7: manmonths | F7: elech | G7: =IF(ISNA(F7),0,INDEX(IF(UPPER(RIGHT(F7,1))=Low,UnitCostLow, IF(UPPER(RIGHT(F7,1))=High,UnitCostHigh,UnitCostSpecified)),MATCH(UPPER(LEFT(F7,LEN(F7)-1)),CostCode,0))) -> 95 | H7: =G7*E7 -> 0
B8: -mechanic | C8: assumes water treatment still required | D8: manmonths | F8: mechh | G8: =IF(ISNA(F8),0,INDEX(IF(UPPER(RIGHT(F8,1))=Low,UnitCostLow, IF(UPPER(RIGHT(F8,1))=High,UnitCostHigh,UnitCostSpecified)),MATCH(UPPER(LEFT(F8,LEN(F8)-1)),CostCode,0))) -> 72.85 | H8: =G8*E8 -> 0
B9: annual fuel | D9: litre | F9: fcdh | G9: 1.39 | H9: 0
B10: misc. supplies | D10: allow | F10: accmh | G10: =IF(ISNA(F10),0,INDEX(IF(UPPER(RIGHT(F10,1))=Low,UnitCostLow, IF(UPPER(RIGHT(F10,1))=High,UnitCostHigh,UnitCostSpecified)),MATCH(UPPER(LEFT(F10,LEN(F10)-1)),CostCode,0))) -> 175 | H10: =G10*E10 -> 0
B11: pick-up truck | D11: each | F11: =NA() ->  | G11: 0 | H11: 0
B12: small dozer | D12: allow | F12: =NA() ->  | G12: 0 | H12: 0
B13: small excavator | D13: allow | F13: =NA() ->  | G13: 0 | H13: 0
B14: snow machine | D14: allow | F14: =NA() ->  | G14: 0 | H14: 0
B15: Operation and Maintenance | C15: includes camp operations | D15: allow | E15: 1 | F15: TMAC | G15: 1440000 | H15: 1440000
B16: Mobilization of ICM equipment fleet | D16: allow | E16: 0.33 | F16: TMAC | G16: 118000 | H16: 38940
B17: communications | D17: allow | E17: 1 | F17: ACI | G17: 1500 | H17: 1500
B18: SNP/AEMP water sampling & reporting | D18: each | E18: 1 | F18: TMAC | G18: 60000 | H18: 60000
B19: Regulatory Reporting | D19: each | E19: 1 | F19: TMAC | G19: 20000 | H19: =G19*E19 -> 20000
B20: geotechnical assessment | D20: each | E20: 1 | F20: TMAC | G20: 35000 | H20: 35000
B21: interim water treatment | F21: =NA() ->  | H21: =AnnualTreat1Cost -> 0.0001
B22: other | D22: each | F22: =NA() ->  | G22: 0 | H22: 0
G23: Annual Interim C&M Cost | H23: =SUM(H5:H22) -> 1595440
B24: Number of years of ICM | D24: years | E24: 3 | G24: Total | H24: =H23*E24 -> 4786320

Sheet PostClosure
A1: 1 | B1: Post-Closure Monitoring & Maintenance:
B3: ACTIVITY/MATERIAL | C3: Notes | D3: Units | E3: Quantity | F3: Cost Code | G3: Unit Cost | H3: Cost
B4: MONITORING & INSPECTIONS
B5: Annual geotechnical inspection | C5: Year 1, 2, 3, 6, 10, 15, 20, & 25 | D5: each | E5: 1 | F5: TMAC | G5: 28000 | H5: =G5*E5 -> 28000 | I5: 8 inspections @$35,000 each = $280,000 | K5: =8*35000 -> 280000
B6: Cover Monitoirng Inspections | C6: Year 2, 4, 6, 8, 10, 15, 20 &25 | D6: each | E6: 1 | F6: TMAC | G6: 28000 | H6: =G6*E6 -> 28000 | I6: 8 inspections @$35,000 each = $280,000
B7: Surface water sampling | C7: Year 1 - 5, 7, 10, 15, 20 & 25 | D7: each | E7: 1 | F7: TMAC | G7: 60000 | H7: =G7*E7 -> 60000 | I7: 10 insepctions @$60,000 = $600,000
B8: Groundwater sampling | D8: each | F8: wsh | G8: =IF(ISNA(F8),0,INDEX(IF(UPPER(RIGHT(F8,1))=Low,UnitCostLow, IF(UPPER(RIGHT(F8,1))=High,UnitCostHigh,UnitCostSpecified)),MATCH(UPPER(LEFT(F8,LEN(F8)-1)),CostCode,0))) -> 10000 | H8: 0
B9: Receiving.downstream water sampling | D9: each | F9: wsh | G9: 10000 | H9: 0
B10: Monitoring program | C10: initial confirmatory program | D10: each | E10: 1 | F10: TMAC | G10: 10000 | H10: 10000 | I10: 1 time event prorated for 10 years total = $100,000
B11: Survey inspection | D11: each | F11: =NA() ->  | G11: =IF(ISNA(F11),0,INDEX(IF(UPPER(RIGHT(F11,1))=Low,UnitCostLow, IF(UPPER(RIGHT(F11,1))=High,UnitCostHigh,UnitCostSpecified)),MATCH(UPPER(LEFT(F11,LEN(F11)-1)),CostCode,0))) -> 0 | H11: 0
B12: Regulatory Monitoring* | C12: Year 1 - 10, 15, 20 & 25 | D12: each | E12: 1 | F12: TMAC | G12: 26000 | H12: 26000 | I12: 13 insepctions @$20,000 = $260,000
B13: Site water monitoring (AEMP and SNP) | D13: each | F13: =NA() ->  | G13: 25000 | H13: 0
B14: - Active closure and flooding | D14: each | F14: =NA() ->  | G14: 0 | H14: 0
B15: - Post pit flooding | D15: each | F15: =NA() ->  | G15: 0 | H15: 0
B16: Air Quality Monitoring Program (AQMP) | D16: each | F16: =NA() ->  | G16: 0 | H16: 0
B17: Wildlife Effects Monitoring Program (WEMP) | D17: each | F17: =NA() ->  | G17: =IF(ISNA(F17),0,INDEX(IF(UPPER(RIGHT(F17,1))=Low,UnitCostLow, IF(UPPER(RIGHT(F17,1))=High,UnitCostHigh,UnitCostSpecified)),MATCH(UPPER(LEFT(F17,LEN(F17)-1)),CostCode,0))) -> 0 | H17: 0
B18: Vegetation Monitoring | D18: each | F18: =NA() ->  | G18: 0 | H18: 0
B19: Other | C19: Equipment mechanic for inspections | D19: days | E19: 5 | F19: TMAC | G19: 1157.53 | H19: =G19*E19 -> 5787.65 | I19: approximately 50 days of mechanic time over ten years
B20: COVER MAINTENANCE
B21: Repair erosion - infill gullies | D21: allow | F21: =NA() ->  | G21: 0 | H21: 0
B22: Repair erosion - upgrade diversion ditches | D22: allow | F22: =NA() ->  | G22: 0 | H22: =G22*E22 -> 0
B23: Remove problem vegetation | D23: allow | F23: =NA() ->  | G23: 0 | H23: 0
B24: Repair animal damage | D24: allow | F24: =NA() ->  | G24: 0 | H24: 0
B25: Repair/upgrade access controls | D25: allow | F25: =NA() ->  | G25: 0 | H25: 0
B26: Other | F26: =NA() ->  | G26: 0 | H26: 0
B27: SPILLWAY MAINTENANCE
B28: Repair erosion | D28: m3 | F28: =NA() ->  | G28: 0 | H28: 0
B29: Clear spillway | D29: each | F29: =NA() ->  | G29: 0 | H29: =G29*E29 -> 0
B30: CWTS MAINTENANCE
B31: Maintain flow, restore vegetation | D31: allow | F31: =NA() ->  | G31: =IF(ISNA(F31),0,INDEX(IF(UPPER(RIGHT(F31,1))=Low,UnitCostLow, IF(UPPER(RIGHT(F31,1))=High,UnitCostHigh,UnitCostSpecified)),MATCH(UPPER(LEFT(F31,LEN(F31)-1)),CostCode,0))) -> 0 | H31: =G31*E31 -> 0
B32: POST-CLOSURE WATER TREATMENT
B33: water treatment - refer to water treatment tab | E33: 1 | F33: wt tab | G33: =AnnualTreat1Cost -> 0.0001 | H33: =G33*E33 -> 0.0001
B35: Subtotal, Annual post-closure costs | H35: =SUM(H5:H34)+0.0001 -> 157787.6502
B37: Discount rate for calculation of net present value of post-closure cost, %
B38: Number of years of post-closure activity | F38: 10 | G38: years
B39: Present Value of payment stream | H39: =PV(DiscountRate,PCYears, PCAnnualTotal)*-1 -> 1577876.502
B41: *Regulatory costs - annual reporting, management plans, progress reports etc.

Sheet Mobilization
A1: 1 | B1: Mobilization/Demobilization:
B3: ACTIVITY/MATERIAL | C3: Notes | D3: Units | E3: Quantity | F3: Cost Code | G3: Unit Cost | H3: Cost
B4: MOBILIZE HEAVY EQUIPMENT
B5: Excavators | D5: km | F5: mherh | G5: =IF(ISNA(F5),0,INDEX(IF(UPPER(RIGHT(F5,1))=Low,UnitCostLow, IF(UPPER(RIGHT(F5,1))=High,UnitCostHigh,UnitCostSpecified)),MATCH(UPPER(LEFT(F5,LEN(F5)-1)),CostCode,0))) -> 10.25 | H5: =G5*E5 -> 0
B6: Dump trucks | D6: km | F6: mherl | G6: 3.4 | H6: 0
B7: Dozers | D7: km | F7: mherh | G7: 10.25 | H7: 0
B8: Demolition shears | D8: km | F8: mherh | G8: 10.25 | H8: 0
B9: Crane | D9: km | F9: mherh | G9: 10.25 | H9: 0
B10: Loader | D10: km | F10: mherh | G10: 10.25 | H10: =G10*E10 -> 0
B11: Compactor | D11: km | F11: =NA() ->  | G11: =IF(ISNA(F11),0,INDEX(IF(UPPER(RIGHT(F11,1))=Low,UnitCostLow, IF(UPPER(RIGHT(F11,1))=High,UnitCostHigh,UnitCostSpecified)),MATCH(UPPER(LEFT(F11,LEN(F11)-1)),CostCode,0))) -> 0 | H11: =G11*E11 -> 0
B12: Light duty vehicles | D12: km | F12: mherl | G12: 3.4 | H12: 0
B13: MOBILIZE MISC. EQUIPMENT
B14: Pump shipping | D14: each | F14: =NA() ->  | G14: =IF(ISNA(F14),0,INDEX(IF(UPPER(RIGHT(F14,1))=Low,UnitCostLow, IF(UPPER(RIGHT(F14,1))=High,UnitCostHigh,UnitCostSpecified)),MATCH(UPPER(LEFT(F14,LEN(F14)-1)),CostCode,0))) -> 0 | H14: =G14*E14 -> 0
B15: Pipe shipping | D15: m | F15: =NA() ->  | G15: =IF(ISNA(F15),0,INDEX(IF(UPPER(RIGHT(F15,1))=Low,UnitCostLow, IF(UPPER(RIGHT(F15,1))=High,UnitCostHigh,UnitCostSpecified)),MATCH(UPPER(LEFT(F15,LEN(F15)-1)),CostCode,0))) -> 0 | H15: =G15*E15 -> 0
B16: Minor tools and equipment | D16: allow | F16: =NA() ->  | G16: 100000 | H16: =G16*E16 -> 0
B17: Truck tires | D17: allow | F17: =NA() ->  | G17: =IF(ISNA(F17),0,INDEX(IF(UPPER(RIGHT(F17,1))=Low,UnitCostLow, IF(UPPER(RIGHT(F17,1))=High,UnitCostHigh,UnitCostSpecified)),MATCH(UPPER(LEFT(F17,LEN(F17)-1)),CostCode,0))) -> 0 | H17: =G17*E17 -> 0
B18: Other | C18: Mobilization of equipment and material | D18: allow | E18: 1 | F18: TMAC | G18: 1071125 | H18: 1071125
B20: MOBILIZE CAMP
B21: Maintain Camp Accomodations | C21: Food | D21: mandays | E21: 9720 | F21: TMAC | G21: 100 | H21: =G21*E21 -> 972000
B22: Camp Mobilization/Demobilization | D22: LS | E22: 1 | F22: TMAC | G22: 170450 | H22: 170450
B23: Camp Rental | D23: year | E23: 1.3 | F23: TMAC | G23: 668250 | H23: 868725
B24: Camp Operations | D24: year | E24: 1.3 | F24: TMAC | G24: 405000 | H24: 526500
B25: Reclamation activities | D25: allow | F25: =NA() ->  | G25: =IF(ISNA(F25),0,INDEX(IF(UPPER(RIGHT(F25,1))=Low,UnitCostLow, IF(UPPER(RIGHT(F25,1))=High,UnitCostHigh,UnitCostSpecified)),MATCH(UPPER(LEFT(F25,LEN(F25)-1)),CostCode,0))) -> 0 | H25: 0
B26: Long term reclamation activities (eg pump flooding) | D26: allow | F26: =NA() ->  | G26: =IF(ISNA(F26),0,INDEX(IF(UPPER(RIGHT(F26,1))=Low,UnitCostLow, IF(UPPER(RIGHT(F26,1))=High,UnitCostHigh,UnitCostSpecified)),MATCH(UPPER(LEFT(F26,LEN(F26)-1)),CostCode,0))) -> 0 | H26: 0
B27: MOBILIZE WORKERS
B28: Reclamation activities - transport | C28: air charter only | D28: flights | E28: 34 | F28: TMAC | G28: 10620 | H28: =G28*E28 -> 361080
B29: Reclamation activities - travel time | C29: twenty workers three hours per shift | D29: manhours | E29: 0 | F29: ACI | G29: 80 | H29: =G29*E29 -> 0 | J29: Removed time as cost is incorporated into hourly rates per SRK memo of 31 Aug 2018
B30: Long term reclamation activities (eg pump flooding) - transport | D30: each | F30: AE | G30: 3500 | H30: =G30*E30 -> 0
B31: Long term reclamation activities (eg pump flooding) - travel time | D31: manhours | F31: AE | G31: 80 | H31: =G31*E31 -> 0
B32: Monitoring Airfare | D32: each | F32: mwl | G32: =IF(ISNA(F32),0,INDEX(IF(UPPER(RIGHT(F32,1))=Low,UnitCostLow, IF(UPPER(RIGHT(F32,1))=High,UnitCostHigh,UnitCostSpecified)),MATCH(UPPER(LEFT(F32,LEN(F32)-1)),CostCode,0))) -> 4500 | H32: =G32*E32 -> 0
B33: WORKER ACCOMODATIONS
B34: Reclamation activities | D34: manmonths | F34: =NA() ->  | G34: 2225 | H34: =G34*E34 -> 0
B35: Long term reclamation activities (eg pump flooding) | D35: manmonths | F35: =NA() ->  | G35: =IF(ISNA(F35),0,INDEX(IF(UPPER(RIGHT(F35,1))=Low,UnitCostLow, IF(UPPER(RIGHT(F35,1))=High,UnitCostHigh,UnitCostSpecified)),MATCH(UPPER(LEFT(F35,LEN(F35)-1)),CostCode,0))) -> 0 | H35: =G35*E35 -> 0
B36: MOBILIZE FUEL
B37: Fuel freight - reclamation activities | C37: assumes sufficient fuel is on site to complete the work | D37: litre | F37: fcdh | G37: =IF(ISNA(F37),0,INDEX(IF(UPPER(RIGHT(F37,1))=Low,UnitCostLow, IF(UPPER(RIGHT(F37,1))=High,UnitCostHigh,UnitCostSpecified)),MATCH(UPPER(LEFT(F37,LEN(F37)-1)),CostCode,0))) -> 1.39 | H37: =G37*E37 -> 0
B38: Fuel freight - long term reclamation activities | C38: assumes sufficient fuel is on site to complete the work | D38: litre | F38: =NA() ->  | G38: =IF(ISNA(F38),0,INDEX(IF(UPPER(RIGHT(F38,1))=Low,UnitCostLow, IF(UPPER(RIGHT(F38,1))=High,UnitCostHigh,UnitCostSpecified)),MATCH(UPPER(LEFT(F38,LEN(F38)-1)),CostCode,0))) -> 0 | H38: =G38*E38 -> 0
B39: Fuel freight accomodations | D39: litre | F39: =NA() ->  | G39: =IF(ISNA(F39),0,INDEX(IF(UPPER(RIGHT(F39,1))=Low,UnitCostLow, IF(UPPER(RIGHT(F39,1))=High,UnitCostHigh,UnitCostSpecified)),MATCH(UPPER(LEFT(F39,LEN(F39)-1)),CostCode,0))) -> 0 | H39: =G39*E39 -> 0
B40: WINTER ROAD
B41: Construction and operation | D41: km | F41: =NA() ->  | G41: =IF(ISNA(F41),0,INDEX(IF(UPPER(RIGHT(F41,1))=Low,UnitCostLow, IF(UPPER(RIGHT(F41,1))=High,UnitCostHigh,UnitCostSpecified)),MATCH(UPPER(LEFT(F41,LEN(F41)-1)),CostCode,0))) -> 0 | H41: =G41*E41 -> 0
B42: Limited winter use | D42: km | F42: =NA() ->  | G42: =IF(ISNA(F42),0,INDEX(IF(UPPER(RIGHT(F42,1))=Low,UnitCostLow, IF(UPPER(RIGHT(F42,1))=High,UnitCostHigh,UnitCostSpecified)),MATCH(UPPER(LEFT(F42,LEN(F42)-1)),CostCode,0))) -> 0 | H42: =G42*E42 -> 0
B43: Winter road tarriff | D43: km | F43: =NA() ->  | G43: =IF(ISNA(F43),0,INDEX(IF(UPPER(RIGHT(F43,1))=Low,UnitCostLow, IF(UPPER(RIGHT(F43,1))=High,UnitCostHigh,UnitCostSpecified)),MATCH(UPPER(LEFT(F43,LEN(F43)-1)),CostCode,0))) -> 0 | H43: =G43*E43 -> 0
B44: DEMOBILIZE HEAVY EQUIPMENT
B45: Excavators | C45: assume two excavators | D45: km | F45: mherh | G45: =IF(ISNA(F45),0,INDEX(IF(UPPER(RIGHT(F45,1))=Low,UnitCostLow, IF(UPPER(RIGHT(F45,1))=High,UnitCostHigh,UnitCostSpecified)),MATCH(UPPER(LEFT(F45,LEN(F45)-1)),CostCode,0))) -> 10.25 | H45: =G45*E45 -> 0
B46: Dump trucks | C46: assume four dump trucks | D46: km | F46: mherl | G46: =IF(ISNA(F46),0,INDEX(IF(UPPER(RIGHT(F46,1))=Low,UnitCostLow, IF(UPPER(RIGHT(F46,1))=High,UnitCostHigh,UnitCostSpecified)),MATCH(UPPER(LEFT(F46,LEN(F46)-1)),CostCode,0))) -> 3.4 | H46: 0
B47: Dozers | C47: assume two dozers | D47: km | F47: mherh | G47: 10.25 | H47: 0
B48: Demolition shears | C48: assume one set of shears | D48: km | F48: mherh | G48: 10.25 | H48: 0
B49: Crane | C49: assume one crane | D49: km | F49: mherh | G49: 10.25 | H49: 0
B50: Loader | C50: assume one loader | D50: km | F50: mherh | G50: =IF(ISNA(F50),0,INDEX(IF(UPPER(RIGHT(F50,1))=Low,UnitCostLow, IF(UPPER(RIGHT(F50,1))=High,UnitCostHigh,UnitCostSpecified)),MATCH(UPPER(LEFT(F50,LEN(F50)-1)),CostCode,0))) -> 10.25 | H50: =G50*E50 -> 0
B51: Compactor | D51: each | F51: =NA() ->  | G51: =IF(ISNA(F51),0,INDEX(IF(UPPER(RIGHT(F51,1))=Low,UnitCostLow, IF(UPPER(RIGHT(F51,1))=High,UnitCostHigh,UnitCostSpecified)),MATCH(UPPER(LEFT(F51,LEN(F51)-1)),CostCode,0))) -> 0 | H51: =G51*E51 -> 0
B52: Light duty vehicles | C52: assume three trucks | D52: km | F52: mherl | G52: 3.4 | H52: 0
B53: Other | C53: Demobilization of equipment and material | D53: allow | E53: 1 | F53: TMAC | G53: 1071125 | H53: =G53*E53 -> 1071125
B54: DEMOBILIZE CAMP
D55: allow | F55: =NA() ->  | G55: =IF(ISNA(F55),0,INDEX(IF(UPPER(RIGHT(F55,1))=Low,UnitCostLow, IF(UPPER(RIGHT(F55,1))=High,UnitCostHigh,UnitCostSpecified)),MATCH(UPPER(LEFT(F55,LEN(F55)-1)),CostCode,0))) -> 0 | H55: =G55*E55 -> 0
B56: DEMOBILIZE WORKERS
B57: crew travel time | C57: cost in mobilization of workers. | D57: mandays | F57: =NA() ->  | G57: =IF(ISNA(F57),0,INDEX(IF(UPPER(RIGHT(F57,1))=Low,UnitCostLow, IF(UPPER(RIGHT(F57,1))=High,UnitCostHigh,UnitCostSpecified)),MATCH(UPPER(LEFT(F57,LEN(F57)-1)),CostCode,0))) -> 0 | H57: =G57*E57 -> 0
B58: crew transportation | D58: each | F58: =NA() ->  | G58: =IF(ISNA(F58),0,INDEX(IF(UPPER(RIGHT(F58,1))=Low,UnitCostLow, IF(UPPER(RIGHT(F58,1))=High,UnitCostHigh,UnitCostSpecified)),MATCH(UPPER(LEFT(F58,LEN(F58)-1)),CostCode,0))) -> 0 | H58: =G58*E58 -> 0
B59: WINTER ROAD
B60: Construction and operation | D60: km | F60: wrcl | G60: =IF(ISNA(F60),0,INDEX(IF(UPPER(RIGHT(F60,1))=Low,UnitCostLow, IF(UPPER(RIGHT(F60,1))=High,UnitCostHigh,UnitCostSpecified)),MATCH(UPPER(LEFT(F60,LEN(F60)-1)),CostCode,0))) -> 2000 | H60: =G60*E60 -> 0
B61: Limited winter use | D61: km | F61: =NA() ->  | G61: =IF(ISNA(F61),0,INDEX(IF(UPPER(RIGHT(F61,1))=Low,UnitCostLow, IF(UPPER(RIGHT(F61,1))=High,UnitCostHigh,UnitCostSpecified)),MATCH(UPPER(LEFT(F61,LEN(F61)-1)),CostCode,0))) -> 0 | H61: =G61*E61 -> 0
B62: Winter road tarriff | D62: tonnekm | F62: wrul | G62: =IF(ISNA(F62),0,INDEX(IF(UPPER(RIGHT(F62,1))=Low,UnitCostLow, IF(UPPER(RIGHT(F62,1))=High,UnitCostHigh,UnitCostSpecified)),MATCH(UPPER(LEFT(F62,LEN(F62)-1)),CostCode,0))) -> 0.29 | H62: =G62*E62 -> 0
G63: Total | H63: =SUM(H5:H62)+0.0001 -> 5041005

Sheet Open Pit
A1: 1 | B1: Open Pit Name: | G1: Pit # | H1: 1
B3: ACTIVITY/MATERIAL | C3: Notes | D3: Units | E3: Quantity | F3: Cost Code | G3: Unit Cost | H3: Cost | I3: % Land | J3: Land Cost | K3: Water Cost
B4: CONTROL ACCESS
B5: Fence | D5: m | F5: =NA() ->  | G5: =IF(ISNA(F5),0,INDEX(IF(UPPER(RIGHT(F5,1))=Low,UnitCostLow, IF(UPPER(RIGHT(F5,1))=High,UnitCostHigh,UnitCostSpecified)),MATCH(UPPER(LEFT(F5,LEN(F5)-1)),CostCode,0))) -> 0 | H5: =G5*E5 -> 0 | J5: =H5*I5 -> 0 | K5: =H5*(1-I5) -> 0
B6: Signs | D6: each | F6: SH | G6: 37.08 | H6: =G6*E6 -> 0 | J6: =H6*I6 -> 0 | K6: =H6*(1-I6) -> 0
B7: Berm at crest | D7: m3 | F7: =NA() ->  | G7: 0 | H7: =G7*E7 -> 0 | J7: 0 | K7: 0
B8: Block roads | D8: m3 | F8: RB1H | G8: 17.05 | H8: =G8*E8 -> 0 | J8: 0 | K8: 0
B9: Other | F9: =NA() ->  | G9: =IF(ISNA(F9),0,INDEX(IF(UPPER(RIGHT(F9,1))=Low,UnitCostLow, IF(UPPER(RIGHT(F9,1))=High,UnitCostHigh,UnitCostSpecified)),MATCH(UPPER(LEFT(F9,LEN(F9)-1)),CostCode,0))) -> 0 | H9: =G9*E9 -> 0 | J9: =H9*I9 -> 0 | K9: =H9*(1-I9) -> 0
B10: STABILITY STUDY
B11: Conduct stability and setback study | D11: allow | F11: EA | G11: 20000 | H11: =G11*E11 -> 0 | J11: =H11*I11 -> 0 | K11: =H11*(1-I11) -> 0
B12: STABILIZE SLOPES
B13: Off-load crest, soil A | D13: m3 | F13: =NA() ->  | G13: 0 | H13: =G13*E13 -> 0 | J13: 0 | K13: 0
B14: Off-load crest, soil B | D14: m3 | F14: =NA() ->  | G14: 0 | H14: 0 | J14: 0 | K14: 0
B15: Doze/trim overburden at crest | D15: m3 | F15: =NA() ->  | G15: 0 | H15: 0 | J15: 0 | K15: 0
B16: Drill & blast pit crest | D16: m3 | F16: =NA() ->  | G16: 0 | H16: 0 | J16: 0 | K16: 0
B17: Buttress slope | D17: m3 | F17: =NA() ->  | G17: 0 | H17: 0 | J17: 0 | K17: 0
B18: Other | F18: =NA() ->  | G18: 0 | H18: 0 | J18: 0 | K18: 0
B19: COVER/CONTOUR SLOPES
B20: Place fill, soil A | D20: m3 | F20: =NA() ->  | G20: 0 | H20: =G20*E20 -> 0 | J20: 0 | K20: 0
B21: Place fill, soil B | D21: m3 | F21: =NA() ->  | G21: 0 | H21: 0 | J21: 0 | K21: 0
B22: Rip rap | D22: m3 | F22: =NA() ->  | G22: 0 | H22: 0 | J22: 0 | K22: 0
B23: Vegetate slopes | D23: ha | F23: =NA() ->  | G23: 0 | H23: 0 | J23: 0 | K23: 0
B24: Vegetate pit floor | D24: ha | F24: =NA() ->  | G24: 0 | H24: 0 | J24: 0 | K24: 0
B25: Other | F25: =NA() ->  | G25: 0 | H25: 0 | J25: 0 | K25: 0
B26: CONSTRUCT DIVERSION DITCHES
B27: Excavate ditches -soil | C27: covered under Surface Water Mgmt | D27: m3 | F27: =NA() ->  | G27: =IF(ISNA(F27),0,INDEX(IF(UPPER(RIGHT(F27,1))=Low,UnitCostLow, IF(UPPER(RIGHT(F27,1))=High,UnitCostHigh,UnitCostSpecified)),MATCH(UPPER(LEFT(F27,LEN(F27)-1)),CostCode,0))) -> 0 | H27: =G27*E27 -> 0 | J27: =H27*I27 -> 0 | K27: =H27*(1-I27) -> 0
B28: Excavate ditches -rock | D28: m3 | F28: =NA() ->  | G28: =IF(ISNA(F28),0,INDEX(IF(UPPER(RIGHT(F28,1))=Low,UnitCostLow, IF(UPPER(RIGHT(F28,1))=High,UnitCostHigh,UnitCostSpecified)),MATCH(UPPER(LEFT(F28,LEN(F28)-1)),CostCode,0))) -> 0 | H28: =G28*E28 -> 0 | J28: 0 | K28: 0
B29: Rip rap in channel base | D29: m3 | F29: =NA() ->  | G29: =IF(ISNA(F29),0,INDEX(IF(UPPER(RIGHT(F29,1))=Low,UnitCostLow, IF(UPPER(RIGHT(F29,1))=High,UnitCostHigh,UnitCostSpecified)),MATCH(UPPER(LEFT(F29,LEN(F29)-1)),CostCode,0))) -> 0 | H29: =G29*E29 -> 0 | J29: 0 | K29: 0
B30: CONSTRUCT SPILLWAY
B31: Excavate channel | D31: m3 | F31: =NA() ->  | G31: 0 | H31: =G31*E31 -> 0 | J31: 0 | K31: 0
B32: Concrete | D32: m3 | F32: =NA() ->  | G32: 0 | H32: =G32*E32 -> 0 | J32: 0 | K32: 0
B33: Rip rap | D33: m3 | F33: =NA() ->  | G33: 0 | H33: =G33*E33 -> 0 | J33: 0 | K33: 0
B34: Other | F34: =NA() ->  | G34: 0 | H34: =G34*E34 -> 0 | J34: 0 | K34: 0
B35: RECLAIM QUARRIES
B36: Contour slopes | D36: m3 | F36: =NA() ->  | G36: =IF(ISNA(F36),0,INDEX(IF(UPPER(RIGHT(F36,1))=Low,UnitCostLow, IF(UPPER(RIGHT(F36,1))=High,UnitCostHigh,UnitCostSpecified)),MATCH(UPPER(LEFT(F36,LEN(F36)-1)),CostCode,0))) -> 0 | H36: =G36*E36 -> 0 | J36: =H36*I36 -> 0 | K36: =H36*(1-I36) -> 0
B37: Place overburden | D37: m3 | F37: =NA() ->  | G37: =IF(ISNA(F37),0,INDEX(IF(UPPER(RIGHT(F37,1))=Low,UnitCostLow, IF(UPPER(RIGHT(F37,1))=High,UnitCostHigh,UnitCostSpecified)),MATCH(UPPER(LEFT(F37,LEN(F37)-1)),CostCode,0))) -> 0 | H37: =G37*E37 -> 0 | J37: =H37*I37 -> 0 | K37: =H37*(1-I37) -> 0
B38: Vegetate | D38: m3 | F38: =NA() ->  | G38: =IF(ISNA(F38),0,INDEX(IF(UPPER(RIGHT(F38,1))=Low,UnitCostLow, IF(UPPER(RIGHT(F38,1))=High,UnitCostHigh,UnitCostSpecified)),MATCH(UPPER(LEFT(F38,LEN(F38)-1)),CostCode,0))) -> 0 | H38: =G38*E38 -> 0 | J38: =H38*I38 -> 0 | K38: =H38*(1-I38) -> 0
B39: FLOOD PIT-Captital
B40: Remove stationary equipment (sump pumps) | D40: Allow | G40: 10000 | H40: =G40*E40 -> 0 | J40: 0 | K40: 0
B41: Remove dewatering pipeline | D41: m | F41: =NA() ->  | G41: =IF(ISNA(F41),0,INDEX(IF(UPPER(RIGHT(F41,1))=Low,UnitCostLow, IF(UPPER(RIGHT(F41,1))=High,UnitCostHigh,UnitCostSpecified)),MATCH(UPPER(LEFT(F41,LEN(F41)-1)),CostCode,0))) -> 0 | H41: =G41*E41 -> 0 | J41: =H41*I41 -> 0 | K41: =H41*(1-I41) -> 0
B42: Remove power lines | D42: each | F42: =NA() ->  | G42: 0 | H42: 0 | J42: 0 | K42: 0
B43: Construct diversion ditches | D43: m3 | F43: =NA() ->  | G43: =IF(ISNA(F43),0,INDEX(IF(UPPER(RIGHT(F43,1))=Low,UnitCostLow, IF(UPPER(RIGHT(F43,1))=High,UnitCostHigh,UnitCostSpecified)),MATCH(UPPER(LEFT(F43,LEN(F43)-1)),CostCode,0))) -> 0 | H43: =G43*E43 -> 0 | J43: =H43*I43 -> 0 | K43: =H43*(1-I43) -> 0
B44: -Ditch, mat'l A | D44: m3 | F44: =NA() ->  | G44: 0 | H44: =G44*E44 -> 0 | J44: 0 | K44: =+H44*(1-I44) -> 0
B45: -Ditch, mat'l B | D45: m3 | F45: =NA() ->  | G45: 0 | H45: =G45*E45 -> 0 | J45: 0 | K45: 0
B46: Construct embankment/dam | D46: m3 | F46: =NA() ->  | G46: 0 | H46: 0 | J46: 0 | K46: 0
B47: Supply/install pump station | D47: Allow | G47: 500000 | H47: 0 | J47: 0 | K47: 0
B48: Supply/install piping system | D48: m | F48: =NA() ->  | G48: =IF(ISNA(F48),0,INDEX(IF(UPPER(RIGHT(F48,1))=Low,UnitCostLow, IF(UPPER(RIGHT(F48,1))=High,UnitCostHigh,UnitCostSpecified)),MATCH(UPPER(LEFT(F48,LEN(F48)-1)),CostCode,0))) -> 0 | H48: =G48*E48 -> 0 | J48: =H48*I48 -> 0 | K48: =H48*(1-I48) -> 0
B49: Remove pump post-closure | D49: each | F49: =NA() ->  | G49: =IF(ISNA(F49),0,INDEX(IF(UPPER(RIGHT(F49,1))=Low,UnitCostLow, IF(UPPER(RIGHT(F49,1))=High,UnitCostHigh,UnitCostSpecified)),MATCH(UPPER(LEFT(F49,LEN(F49)-1)),CostCode,0))) -> 0 | H49: =G49*E49 -> 0 | J49: =H49*I49 -> 0 | K49: =H49*(1-I49) -> 0
B50: Remove pipeline post-closure | D50: m | F50: =NA() ->  | G50: =IF(ISNA(F50),0,INDEX(IF(UPPER(RIGHT(F50,1))=Low,UnitCostLow, IF(UPPER(RIGHT(F50,1))=High,UnitCostHigh,UnitCostSpecified)),MATCH(UPPER(LEFT(F50,LEN(F50)-1)),CostCode,0))) -> 0 | H50: =G50*E50 -> 0 | J50: =H50*I50 -> 0 | K50: =H50*(1-I50) -> 0
B51: FLOOD PIT-Annual Cost
B52: Operate pumps (power) | D52: each | G52: 439359.8 | H52: 0 | J52: 0 | K52: 0
B53: Maintain pump/pipeline | D53: allow | F53: =NA() ->  | G53: =IF(ISNA(F53),0,INDEX(IF(UPPER(RIGHT(F53,1))=Low,UnitCostLow, IF(UPPER(RIGHT(F53,1))=High,UnitCostHigh,UnitCostSpecified)),MATCH(UPPER(LEFT(F53,LEN(F53)-1)),CostCode,0))) -> 0 | H53: =G53*E53 -> 0 | J53: =H53*I53 -> 0 | K53: =H53*(1-I53) -> 0
B54: Labour:fuel management, comissioning/decom | D54: $/h | F54: =NA() ->  | G54: =IF(ISNA(F54),0,INDEX(IF(UPPER(RIGHT(F54,1))=Low,UnitCostLow, IF(UPPER(RIGHT(F54,1))=High,UnitCostHigh,UnitCostSpecified)),MATCH(UPPER(LEFT(F54,LEN(F54)-1)),CostCode,0))) -> 0 | H54: =G54*E54 -> 0 | J54: =H54*I54 -> 0 | K54: =H54*(1-I54) -> 0
B55: Chemical addition, _____ kg/m3 of water | D55: tonne | F55: =NA() ->  | G55: 0 | H55: 0 | J55: 0 | K55: 0
B56: Chemicals, purchase and shipping | D56: tonne | F56: =NA() ->  | G56: 0 | H56: 0 | J56: 0 | K56: 0
B57: Passive/biological additives | D57: $/ha | F57: =NA() ->  | G57: =IF(ISNA(F57),0,INDEX(IF(UPPER(RIGHT(F57,1))=Low,UnitCostLow, IF(UPPER(RIGHT(F57,1))=High,UnitCostHigh,UnitCostSpecified)),MATCH(UPPER(LEFT(F57,LEN(F57)-1)),CostCode,0))) -> 0 | H57: =G57*E57 -> 0 | J57: =H57*I57 -> 0 | K57: =H57*(1-I57) -> 0
B58: Passive additives purchase and shipping | D58: tonne | F58: =NA() ->  | G58: =IF(ISNA(F58),0,INDEX(IF(UPPER(RIGHT(F58,1))=Low,UnitCostLow, IF(UPPER(RIGHT(F58,1))=High,UnitCostHigh,UnitCostSpecified)),MATCH(UPPER(LEFT(F58,LEN(F58)-1)),CostCode,0))) -> 0 | H58: =G58*E58 -> 0 | J58: =H58*I58 -> 0 | K58: =H58*(1-I58) -> 0
B59: Other | F59: =NA() ->  | G59: 0 | H59: 0 | J59: =H59*I59 -> 0 | K59: 0
G60: Annual pumping costs | H60: =SUM(H52:H59)+0.0001 -> 0.0001
B61: Number of years of pump flooding | D61: years | E61: 0
G62: Total pumping costs | H62: =H60*E61 -> 0 | J62: =H62*I62 -> 0 | K62: =H62*(1-I62) -> 0
G63: Total | H63: =SUM(H5:H50)+H62+0.0001 -> 0.0001 | J63: =SUM(J5:J50)+J62 -> 0 | K63: =SUM(K5:K50)+K62 -> 0
G64: % of Total | J64: =J63/H63 -> 0 | K64: =K63/H63 -> 0

Sheet Water Management
A1: 1 | B1: Capital Expenditures and Short Term Water Treatment identified in 'Instructions' worksheet
B3: ACTIVITY/MATERIAL | C3: Notes | D3: Units | E3: Quantity | F3: Cost Code | G3: Unit Cost | H3: Cost
B4: BREACH DYKE EMBANKMENT
B5: breach contact ponds | C5: TMA contact water BM-032 | D5: m3 | E5: =180+1944 -> 2124 | F5: TMAC | G5: 3.26 | H5: =G5*E5 -> 6924.24
B6: breach contact ponds | C6: Berm 1 and 2 and Overburden pile | D6: m3 | E6: =3*648 -> 1944 | F6: TMAC | G6: 1.23 | H6: =G6*E6 -> 2391.12
B7: Remove Liner | C7: all ponds (BM-021, BM-025, BM-027 and BM-032 | D7: m2 | E7: =270+90+67+67 -> 494 | F7: TMAC | G7: 0.47 | H7: =G7*E7 -> 232.18
B8: de-icing containment | C8: BM-030 excavate containment sump | D8: m3 | E8: 17 | F8: TMAC | G8: 16.35 | H8: =G8*E8 -> 277.95
B9: Contour water intake area | D9: m3 | F9: =NA() ->  | G9: =IF(ISNA(F9),0,INDEX(IF(UPPER(RIGHT(F9,1))=Low,UnitCostLow, IF(UPPER(RIGHT(F9,1))=High,UnitCostHigh,UnitCostSpecified)),MATCH(UPPER(LEFT(F9,LEN(F9)-1)),CostCode,0))) -> 0 | H9: =G9*E9 -> 0
B10: STABILIZE SEDIMENT PONDS/WATER MANAGEMENT PONDS
B11: Place soil cover | D11: m3 | F11: =NA() ->  | G11: =IF(ISNA(F11),0,INDEX(IF(UPPER(RIGHT(F11,1))=Low,UnitCostLow, IF(UPPER(RIGHT(F11,1))=High,UnitCostHigh,UnitCostSpecified)),MATCH(UPPER(LEFT(F11,LEN(F11)-1)),CostCode,0))) -> 0 | H11: =G11*E11 -> 0
B12: Doze & spread excavated material | D12: m3 | F12: =NA() ->  | G12: =IF(ISNA(F12),0,INDEX(IF(UPPER(RIGHT(F12,1))=Low,UnitCostLow, IF(UPPER(RIGHT(F12,1))=High,UnitCostHigh,UnitCostSpecified)),MATCH(UPPER(LEFT(F12,LEN(F12)-1)),CostCode,0))) -> 0 | H12: =G12*E12 -> 0
B13: Vegetate spread material | D13: ha | F13: =NA() ->  | G13: =IF(ISNA(F13),0,INDEX(IF(UPPER(RIGHT(F13,1))=Low,UnitCostLow, IF(UPPER(RIGHT(F13,1))=High,UnitCostHigh,UnitCostSpecified)),MATCH(UPPER(LEFT(F13,LEN(F13)-1)),CostCode,0))) -> 0 | H13: =G13*E13 -> 0
B14: Rip rap in channel base | D14: each | F14: =NA() ->  | G14: =IF(ISNA(F14),0,INDEX(IF(UPPER(RIGHT(F14,1))=Low,UnitCostLow, IF(UPPER(RIGHT(F14,1))=High,UnitCostHigh,UnitCostSpecified)),MATCH(UPPER(LEFT(F14,LEN(F14)-1)),CostCode,0))) -> 0 | H14: =G14*E14 -> 0
B15: Remove sediment from WRSF Pond | D15: allow | F15: AE | G15: 10000 | H15: =G15*E15 -> 0
B16: REDIRECT RUNOFF/CONSTRUCT DIVERSION DITCHES
B17: Excavate ditches -soil | D17: m3 | F17: sc3l | G17: =IF(ISNA(F17),0,INDEX(IF(UPPER(RIGHT(F17,1))=Low,UnitCostLow, IF(UPPER(RIGHT(F17,1))=High,UnitCostHigh,UnitCostSpecified)),MATCH(UPPER(LEFT(F17,LEN(F17)-1)),CostCode,0))) -> 8.9 | H17: =G17*E17 -> 0
B18: Excavate ditches -rock | D18: m3 | F18: =NA() ->  | G18: =IF(ISNA(F18),0,INDEX(IF(UPPER(RIGHT(F18,1))=Low,UnitCostLow, IF(UPPER(RIGHT(F18,1))=High,UnitCostHigh,UnitCostSpecified)),MATCH(UPPER(LEFT(F18,LEN(F18)-1)),CostCode,0))) -> 0 | H18: =G18*E18 -> 0
B19: Stabilize side slopes | D19: m3 | F19: =NA() ->  | G19: =IF(ISNA(F19),0,INDEX(IF(UPPER(RIGHT(F19,1))=Low,UnitCostLow, IF(UPPER(RIGHT(F19,1))=High,UnitCostHigh,UnitCostSpecified)),MATCH(UPPER(LEFT(F19,LEN(F19)-1)),CostCode,0))) -> 0 | H19: =G19*E19 -> 0
B20: Rip rap in channel base | D20: m3 | F20: rr2l | G20: =IF(ISNA(F20),0,INDEX(IF(UPPER(RIGHT(F20,1))=Low,UnitCostLow, IF(UPPER(RIGHT(F20,1))=High,UnitCostHigh,UnitCostSpecified)),MATCH(UPPER(LEFT(F20,LEN(F20)-1)),CostCode,0))) -> 14.2 | H20: =G20*E20 -> 0
B21: BREACH DITCHES
B22: Excavate breaches | D22: m3 | F22: =NA() ->  | G22: =IF(ISNA(F22),0,INDEX(IF(UPPER(RIGHT(F22,1))=Low,UnitCostLow, IF(UPPER(RIGHT(F22,1))=High,UnitCostHigh,UnitCostSpecified)),MATCH(UPPER(LEFT(F22,LEN(F22)-1)),CostCode,0))) -> 0 | H22: =G22*E22 -> 0
B23: Backfill/recontour | D23: m3 | F23: SB3l | G23: =IF(ISNA(F23),0,INDEX(IF(UPPER(RIGHT(F23,1))=Low,UnitCostLow, IF(UPPER(RIGHT(F23,1))=High,UnitCostHigh,UnitCostSpecified)),MATCH(UPPER(LEFT(F23,LEN(F23)-1)),CostCode,0))) -> 5.1 | H23: =G23*E23 -> 0
B24: Install flow dissipation | D24: m3 | F24: =NA() ->  | G24: =IF(ISNA(F24),0,INDEX(IF(UPPER(RIGHT(F24,1))=Low,UnitCostLow, IF(UPPER(RIGHT(F24,1))=High,UnitCostHigh,UnitCostSpecified)),MATCH(UPPER(LEFT(F24,LEN(F24)-1)),CostCode,0))) -> 0 | H24: =G24*E24 -> 0
B25: Vegetate remainder of ditch | D25: m2 | F25: =NA() ->  | G25: =IF(ISNA(F25),0,INDEX(IF(UPPER(RIGHT(F25,1))=Low,UnitCostLow, IF(UPPER(RIGHT(F25,1))=High,UnitCostHigh,UnitCostSpecified)),MATCH(UPPER(LEFT(F25,LEN(F25)-1)),CostCode,0))) -> 0 | H25: =G25*E25 -> 0
B26: DECOMISSION FRESH WATER SUPPLY and OTHER EQUIPMENT
B27: Breach embankment | D27: m | F27: =NA() ->  | G27: =IF(ISNA(F27),0,INDEX(IF(UPPER(RIGHT(F27,1))=Low,UnitCostLow, IF(UPPER(RIGHT(F27,1))=High,UnitCostHigh,UnitCostSpecified)),MATCH(UPPER(LEFT(F27,LEN(F27)-1)),CostCode,0))) -> 0 | H27: =G27*E27 -> 0
B28: Remove pumps | C28: De-icing sump and contact water area pumps | D28: LS | E28: =1+4+4+4+6 -> 19 | F28: TMAC | G28: 679.52 | H28: =G28*E28 -> 12910.88
B29: Remove pipeline | D29: LS | F29: AE | G29: 40000 | H29: =G29*E29 -> 0
B30: WATER CONTROL IN RECLAMATION QUARRY
B31: Install pumping system | D31: LS | F31: =NA() ->  | G31: =IF(ISNA(F31),0,INDEX(IF(UPPER(RIGHT(F31,1))=Low,UnitCostLow, IF(UPPER(RIGHT(F31,1))=High,UnitCostHigh,UnitCostSpecified)),MATCH(UPPER(LEFT(F31,LEN(F31)-1)),CostCode,0))) -> 0 | H31: =G31*E31 -> 0
B32: Remove pumping system | D32: LS | F32: =NA() ->  | G32: =IF(ISNA(F32),0,INDEX(IF(UPPER(RIGHT(F32,1))=Low,UnitCostLow, IF(UPPER(RIGHT(F32,1))=High,UnitCostHigh,UnitCostSpecified)),MATCH(UPPER(LEFT(F32,LEN(F32)-1)),CostCode,0))) -> 0 | H32: =G32*E32 -> 0
B33: REMOVE PIPELINES
B34: Remove pipes | C34: Water discharge line decommission | D34: m | E34: 2000 | F34: TMAC | G34: 11.08 | H34: =G34*E34 -> 22160
C35: Water discharge line load and haul to landfill | D35: m3 | E35: 98 | F35: TMAC | G35: =10.23+3.26 -> 13.49 | H35: =G35*E35 -> 1322.02
B36: Decomission STP Pipe | D36: m | E36: 50 | F36: TMAC | G36: 11.08 | H36: =G36*E36 -> 554
B37: Concrete plug deep pipes | D37: m3 | F37: =NA() ->  | G37: =IF(ISNA(F37),0,INDEX(IF(UPPER(RIGHT(F37,1))=Low,UnitCostLow, IF(UPPER(RIGHT(F37,1))=High,UnitCostHigh,UnitCostSpecified)),MATCH(UPPER(LEFT(F37,LEN(F37)-1)),CostCode,0))) -> 0 | H37: =G37*E37 -> 0
B38: Other | F38: =NA() ->  | G38: =IF(ISNA(F38),0,INDEX(IF(UPPER(RIGHT(F38,1))=Low,UnitCostLow, IF(UPPER(RIGHT(F38,1))=High,UnitCostHigh,UnitCostSpecified)),MATCH(UPPER(LEFT(F38,LEN(F38)-1)),CostCode,0))) -> 0 | H38: =G38*E38 -> 0
B39: GROUNDWATER COLLECTION SYSTEM
B40: Excavate/install sumps | D40: m3 | F40: =NA() ->  | G40: =IF(ISNA(F40),0,INDEX(IF(UPPER(RIGHT(F40,1))=Low,UnitCostLow, IF(UPPER(RIGHT(F40,1))=High,UnitCostHigh,UnitCostSpecified)),MATCH(UPPER(LEFT(F40,LEN(F40)-1)),CostCode,0))) -> 0 | H40: =G40*E40 -> 0
B41: Install pumping wells | D41: m3 | F41: =NA() ->  | G41: =IF(ISNA(F41),0,INDEX(IF(UPPER(RIGHT(F41,1))=Low,UnitCostLow, IF(UPPER(RIGHT(F41,1))=High,UnitCostHigh,UnitCostSpecified)),MATCH(UPPER(LEFT(F41,LEN(F41)-1)),CostCode,0))) -> 0 | H41: =G41*E41 -> 0
B42: Install pumps/pipelines/power supply | D42: LS | F42: =NA() ->  | G42: =IF(ISNA(F42),0,INDEX(IF(UPPER(RIGHT(F42,1))=Low,UnitCostLow, IF(UPPER(RIGHT(F42,1))=High,UnitCostHigh,UnitCostSpecified)),MATCH(UPPER(LEFT(F42,LEN(F42)-1)),CostCode,0))) -> 0 | H42: =G42*E42 -> 0
B43: CONSTRUCT CONTAMINATED WATER STORAGE POND
B44: Excavate pond | D44: m3 | F44: =NA() ->  | G44: =IF(ISNA(F44),0,INDEX(IF(UPPER(RIGHT(F44,1))=Low,UnitCostLow, IF(UPPER(RIGHT(F44,1))=High,UnitCostHigh,UnitCostSpecified)),MATCH(UPPER(LEFT(F44,LEN(F44)-1)),CostCode,0))) -> 0 | H44: =G44*E44 -> 0
B45: Doze & spread excavated material | D45: m3 | F45: =NA() ->  | G45: 0 | H45: 0
B46: Vegetate spread material | D46: ha | F46: =NA() ->  | G46: 0 | H46: 0
B47: Bedding layer | D47: m3 | F47: =NA() ->  | G47: 0 | H47: 0
B48: Supply geomembrane | D48: m2 | F48: =NA() ->  | G48: 0 | H48: 0
B49: Install geomembrane | D49: m2 | F49: =NA() ->  | G49: 0 | H49: 0
B50: Erosion protection layer | D50: m3 | F50: =NA() ->  | G50: 0 | H50: 0
B51: CONSTRUCT PASSIVE TREATMENT SYSTEM (e.g. Constructed Wetland)
B52: Construct access roads | D52: km | F52: =NA() ->  | G52: 0 | H52: =G52*E52 -> 0
B53: Install HDPE piping system from collection pond | D53: m | F53: =NA() ->  | G53: 0 | H53: =G53*E53 -> 0
B54: Inter-cell flow structures | D54: allow | F54: =NA() ->  | G54: 0 | H54: 0
B55: Install liners | D55: m2 | F55: =NA() ->  | G55: 0 | H55: =G55*E55 -> 0
B56: Install growth media | D56: m3 | F56: =NA() ->  | G56: 0 | H56: 0
B57: Wetland vegetation | D57: ha | F57: =NA() ->  | G57: 0 | H57: 0
B58: CONSTRUCT WATER TREATMENT PLANT
B59: Build treatment plant | D59: LS | F59: =NA() ->  | G59: =IF(ISNA(F59),0,INDEX(IF(UPPER(RIGHT(F59,1))=Low,UnitCostLow, IF(UPPER(RIGHT(F59,1))=High,UnitCostHigh,UnitCostSpecified)),MATCH(UPPER(LEFT(F59,LEN(F59)-1)),CostCode,0))) -> 0 | H59: =G59*E59 -> 0
B60: Build sludge containment facility | D60: LS | F60: =NA() ->  | G60: =IF(ISNA(F60),0,INDEX(IF(UPPER(RIGHT(F60,1))=Low,UnitCostLow, IF(UPPER(RIGHT(F60,1))=High,UnitCostHigh,UnitCostSpecified)),MATCH(UPPER(LEFT(F60,LEN(F60)-1)),CostCode,0))) -> 0 | H60: =G60*E60 -> 0
G61: Total | H61: =SUM(H5:H60)+0.0001 -> 46772.3901
B62: For cost of long-term/post-closure water treatment see "WATER TREATMENT" Worksheet"

Sheet Water Treatment
A1: 1 | B1: Post Closure Water Treatment - Identified as long term/post-closure in 'Instructions' worksheet
B3: ACTIVITY/MATERIAL | C3: Notes | D3: Units | E3: Quantity | F3: Cost Code | G3: Unit Cost | H3: Cost
B4: ADDITION OF REAGENTS TO WTP
B5: H2O2 | D5: kg | F5: =NA() ->  | G5: =IF(ISNA(F5),0,INDEX(IF(UPPER(RIGHT(F5,1))=Low,UnitCostLow, IF(UPPER(RIGHT(F5,1))=High,UnitCostHigh,UnitCostSpecified)),MATCH(UPPER(LEFT(F5,LEN(F5)-1)),CostCode,0))) -> 0 | H5: =G5*E5 -> 0
B6: lime | D6: kg | F6: =NA() ->  | G6: 0 | H6: 0
B7: ferric sulphate | D7: kg | F7: =NA() ->  | G7: 0 | H7: 0
B8: ferrous sulphate | D8: kg | F8: =NA() ->  | G8: 0 | H8: 0
B9: flocculents | D9: kg | F9: =NA() ->  | G9: 0 | H9: 0
B10: Other | F10: =NA() ->  | G10: 0 | H10: 0
B11: LABOUR AND SUPPLIES
B12: Annual fuel | D12: litres | F12: =NA() ->  | G12: =IF(ISNA(F12),0,INDEX(IF(UPPER(RIGHT(F12,1))=Low,UnitCostLow, IF(UPPER(RIGHT(F12,1))=High,UnitCostHigh,UnitCostSpecified)),MATCH(UPPER(LEFT(F12,LEN(F12)-1)),CostCode,0))) -> 0 | H12: =G12*E12 -> 0
B13: Annual power | D13: kW-h | F13: =NA() ->  | G13: =IF(ISNA(F13),0,INDEX(IF(UPPER(RIGHT(F13,1))=Low,UnitCostLow, IF(UPPER(RIGHT(F13,1))=High,UnitCostHigh,UnitCostSpecified)),MATCH(UPPER(LEFT(F13,LEN(F13)-1)),CostCode,0))) -> 0 | H13: =G13*E13 -> 0
B14: Electrician/mechanic to maintain treatment plant | D14: allow | F14: =NA() ->  | G14: 0 | H14: 0
B15: Equipment maintenance and parts | D15: allow | F15: =NA() ->  | G15: 0 | H15: 0
B16: Misc. supplies, hoses, tools | D16: allow | F16: =NA() ->  | G16: 0 | H16: 0
B17: Communications | D17: allow | F17: =NA() ->  | G17: 0 | H17: 0
B18: Other | F18: =NA() ->  | G18: 0 | H18: 0
B19: WATER MANAGEMENT
B20: Water Treatment (reagents, equip Op. labour) | D20: m3 | F20: AE | G20: 0.62 | H20: =G20*E20 -> 0
B21: Water pumping from sumps and ponds to treatment plant | D21: allow | F21: AE | G21: 29367.83 | H21: =G21*E21 -> 0
B22: Annual Treatment Plant Servicing | D22: manhours | F22: lab-ss | G22: =IF(ISNA(F22),0,INDEX(IF(UPPER(RIGHT(F22,1))=Low,UnitCostLow, IF(UPPER(RIGHT(F22,1))=High,UnitCostHigh,UnitCostSpecified)),MATCH(UPPER(LEFT(F22,LEN(F22)-1)),CostCode,0))) -> 120 | H22: =G22*E22 -> 0
B23: Treatment Plant Servicing Travel Allowance | D23: visit | F23: AE | G23: 4000 | H23: =G23*E23 -> 0
B24: Other | F24: =NA() ->  | G24: =IF(ISNA(F24),0,INDEX(IF(UPPER(RIGHT(F24,1))=Low,UnitCostLow, IF(UPPER(RIGHT(F24,1))=High,UnitCostHigh,UnitCostSpecified)),MATCH(UPPER(LEFT(F24,LEN(F24)-1)),CostCode,0))) -> 0 | H24: =G24*E24 -> 0
B25: WTP WATER SAMPLING AND ANALYSES
B26: Sampling equipment | D26: allow | F26: =NA() ->  | G26: =IF(ISNA(F26),0,INDEX(IF(UPPER(RIGHT(F26,1))=Low,UnitCostLow, IF(UPPER(RIGHT(F26,1))=High,UnitCostHigh,UnitCostSpecified)),MATCH(UPPER(LEFT(F26,LEN(F26)-1)),CostCode,0))) -> 0 | H26: =G26*E26 -> 0
B27: Analyses | D27: allow | F27: =NA() ->  | G27: =IF(ISNA(F27),0,INDEX(IF(UPPER(RIGHT(F27,1))=Low,UnitCostLow, IF(UPPER(RIGHT(F27,1))=High,UnitCostHigh,UnitCostSpecified)),MATCH(UPPER(LEFT(F27,LEN(F27)-1)),CostCode,0))) -> 0 | H27: =G27*E27 -> 0
B28: Shipping to laboratory | D28: allow | F28: =NA() ->  | G28: =IF(ISNA(F28),0,INDEX(IF(UPPER(RIGHT(F28,1))=Low,UnitCostLow, IF(UPPER(RIGHT(F28,1))=High,UnitCostHigh,UnitCostSpecified)),MATCH(UPPER(LEFT(F28,LEN(F28)-1)),CostCode,0))) -> 0 | H28: =G28*E28 -> 0
B29: Reporting | D29: allow | F29: =NA() ->  | G29: =IF(ISNA(F29),0,INDEX(IF(UPPER(RIGHT(F29,1))=Low,UnitCostLow, IF(UPPER(RIGHT(F29,1))=High,UnitCostHigh,UnitCostSpecified)),MATCH(UPPER(LEFT(F29,LEN(F29)-1)),CostCode,0))) -> 0 | H29: =G29*E29 -> 0
B30: Other | F30: =NA() ->  | G30: =IF(ISNA(F30),0,INDEX(IF(UPPER(RIGHT(F30,1))=Low,UnitCostLow, IF(UPPER(RIGHT(F30,1))=High,UnitCostHigh,UnitCostSpecified)),MATCH(UPPER(LEFT(F30,LEN(F30)-1)),CostCode,0))) -> 0 | H30: =G30*E30 -> 0
B31: SITE ACCESS
B32: Road maintenance (incl. snow removal) | D32: allow | F32: AE | G32: 50000 | H32: =G32*E32 -> 0
B33: Winter road tariff | D33: allow | F33: =NA() ->  | G33: =IF(ISNA(F33),0,INDEX(IF(UPPER(RIGHT(F33,1))=Low,UnitCostLow, IF(UPPER(RIGHT(F33,1))=High,UnitCostHigh,UnitCostSpecified)),MATCH(UPPER(LEFT(F33,LEN(F33)-1)),CostCode,0))) -> 0 | H33: =G33*E33 -> 0
B34: Truck rental | D34: allow | F34: =NA() ->  | G34: =IF(ISNA(F34),0,INDEX(IF(UPPER(RIGHT(F34,1))=Low,UnitCostLow, IF(UPPER(RIGHT(F34,1))=High,UnitCostHigh,UnitCostSpecified)),MATCH(UPPER(LEFT(F34,LEN(F34)-1)),CostCode,0))) -> 0 | H34: =G34*E34 -> 0
B35: Air support | D35: allow | F35: =NA() ->  | G35: =IF(ISNA(F35),0,INDEX(IF(UPPER(RIGHT(F35,1))=Low,UnitCostLow, IF(UPPER(RIGHT(F35,1))=High,UnitCostHigh,UnitCostSpecified)),MATCH(UPPER(LEFT(F35,LEN(F35)-1)),CostCode,0))) -> 0 | H35: =G35*E35 -> 0
G37: Annual water treatment costs | H37: =SUM(H5:H36)+0.0001 -> 0.0001
B38: Number of years of water treatment | D38: years | E38: 25
G39: Total | H39: =AnnualTreat1Cost*E38 -> 0.0025

Sheet Unit_Costs
A1: Unit Cost Table (for refining unit costs see "Estimator" worksheet)
D2: Filter by unit
A4: ITEM | B4: Detail | D4: COST CODE | E4: UNITS | F4: LOW $ | G4: HIGH $ | H4: SPECIFIED $ | J4: COMMENTS
A6: Accomodation
D7: ACCM | E7: manday | F7: 100 | G7: 175
A8: Buildings - Decontaminate
B9: Asbestos | D9: BDA | E9: m2 | F9: 25.6 | G9: 51.2 | J9: Low: removal of asbestos siding & flooring; High: removal of insulated pipes, friable asbestos
A10: Buildings - Remove | J10: Unit costs are based on 3m high, single storey building. Scale areas accordingly.
B11: Wood | D11: BRW | E11: m2 | F11: 27.5 | G11: 41
B12: Concrete | D12: BRC | E12: m2 | F12: 40 | G12: 65 | H12: 6 | J12: Specified: puncture concrete foundation slabs
B13: Steel - teardown | D13: BRS1 | E13: m2 | F13: 45 | G13: 65
B14: Steel - for salvage | D14: BRS2 | E14: m2 | F14: 67 | G14: 100
A15: Concrete work
B16: Small pour | D16: CSF | E16: m3 | F16: 426.5 | G16: 639.75 | J16: Low: YK; High=1.5xLow
B17: Large pour | D17: CLF | E17: m3 | F17: 353.5 | G17: 530.25 | H17: 2130 | J17: Specified: concrete crown pillar
A18: Contaminated Soils
B19: ESA Phase 1 | D19: CS1 | E19: each | F19: 7500 | J19: Low: small, "clean" site
B20: ESA Phase 1 | D20: CS2 | E20: each | F20: 50000 | J20: Low: small, "clean" site
B21: Remediate on site | D21: CSR | E21: m3 | F21: 47 | G21: 146
A22: Dozing
B23: doze rock piles | D23: DR | E23: m3 | F23: 1.05 | G23: 2.4 | J23: Low cost: doze crest off dump
B24: doze overburden/soil piles | D24: DS | E24: m3 | F24: 0.95 | G24: 3.8 | J24: High cost: push up to 300 m
A25: Excavate Rock; Low Spec's and QA/QC
B26: drill/blast/load/short haul | D26: RB1 | E26: m3 | F26: 11.4 | G26: 17.05 | J26: Low:quarry operations for bulk fill
B27: drill/blast/load/long haul | D27: RB2 | E27: m3 | F27: 12.05 | G27: 17.8
B28: RB1 + spread and compact | D28: RB3 | E28: m3 | F28: 12.05 | G28: 17.8
B29: RB2 + spread and compact | D29: RB4 | E29: m3 | F29: 12.5 | G29: 30.75
B30: Specified activity | D30: RBS | E30: m3
A31: Excavate Rock; High Spec's and QA/QC | J31: (e.g. ditch/spillway excavation)
B32: drill/blast/load/short haul | D32: RC1 | E32: m3 | F32: 12.05 | G32: 17.8 | J32: Low:foundation excavation;High:spillway excavation
B33: drill/blast/load/long haul | D33: RC2 | E33: m3 | F33: 12.7 | G33: 18.4
B34: RC1 + spread and compact | D34: RC3 | E34: m3 | F34: 12.7 | G34: 18.4 | J34: e,g, cover construction
B35: RC2 + spread and compact | D35: RC4 | E35: m3 | F35: 13.5 | G35: 19.2 | J35: e,g, cover construction
B36: Specified activity | D36: RCS | E36: m3 | H36: 175 | J36: Specified-drift excavation
A37: Excavate Rip Rap
B38: drill/blast/load/short haul/place | D38: RR1 | E38: m3 | F38: 13.5 | G38: 17.75 | J38: High: quarry & place rip rap in channel
B39: drill/blast/load/long haul/place | D39: RR2 | E39: m3 | F39: 14.2 | G39: 20.65
B40: source is waste dump/short haul | D40: RR3 | E40: m3 | F40: 7 | J40: cost includes sorting
B41: source is waste dump/long haul | D41: RR4 | E41: m3 | F41: 7.6
B42: Specified activity | D42: RRS | E42: m3
A43: Excavate Soil; Low Spec's and QA/QC
B44: clear & grub | D44: SBC | E44: m2 | F44: 3.4 | G44: 5
B45: excavate/load/short haul | D45: SB1 | E45: m3 | F45: 4.3 | G45: 5.9
B46: excavate/load/long haul | D46: SB2 | E46: m3 | F46: 4.6 | G46: 7.3
B47: SB1 + spread and compact | D47: SB3 | E47: m3 | F47: 5.1 | G47: 8.9 | J47: Low: non-engineered; High:engineered
B48: SB2 + spread and compact | D48: SB4 | E48: m3 | F48: 5.5 | G48: 11 | J48: Low: non-engineered; High:engineered
B49: Specified activity | D49: SBS | E49: m3 | F49: 3.2 | G49: 6.3 | J49: Low: rehandle waste rock dump by dozing; High:rehandle waste rock by hauling
B50: Tailings | D50: SBT | E50: m3 | F50: 1.35 | G50: 3.7 | H50: 15.5 | J50: High:contour surface - wet or frozen; Specified:haul/place wet infill
A51: Excavate Soil, High Spec's and QA/QC
B52: excavate/load/short haul | D52: SC1 | E52: m3 | F52: 6.8 | G52: 9.3
B53: excavate/load/long haul | D53: SC2 | E53: m3 | F53: 7.1 | G53: 11.75
B54: SC1 + spread and compact | D54: SC3 | E54: m3 | F54: 8.9 | G54: 14.2 | J54: Low: non-engineered; High:engineered
B55: SC2 + spread and compact | D55: SC4 | E55: m3 | F55: 9.3 | G55: 23.2 | J55: Low: non-engineered; High:engineered (e.g. complex covers, low volume dam construction)
B56: Specified activity | D56: SCS | E56: m3 | H56: 18.8 | J56: Backfill adit with waste rock
A57: Fence
D58: FNC | E58: m | F58: 13.55 | G58: 203
A59: Fuel and Electricity
B60: Fuel cost - gas | D60: FCG | E60: litre | F60: 1.05 | G60: 1.4
B61: Fuel cost - diesel | D61: FCD | E61: litre | F61: 0.99 | G61: 1.39
B62: Fuel mobilization | D62: FCM | E62: litre | F62: 0.22 | G62: 0.42 | J62: High: winter road usage
B63: Electricity | D63: FCE | E63: kW-h | F63: 0.17 | G63: 0.19 | H63: 0.49 | J63: Low and High:Yellowknife; Specified:diesel generator
A64: Geo-Synthetics
B65: geotextile | D65: GST | E65: m2 | F65: 3.44 | J65: Supply and install
B66: geogrid | D66: GSG | E66: m2 | F66: 5.75
B67: liner, HDPE | D67: GSHDPE | E67: m2 | F67: 7.95 | J67: Supply and install; large quantity
B68: liner, ES3 | D68: GSES3 | E68: m2 | F68: 20.2 | J68: FOB Yellowknife
B69: geosynthetic installation | D69: GSI | E69: m2 | F69: 3.16 | G69: 14 | J69: Low:geotextile; High:ES3 or HDPE
B70: bentonite soil ammendment | D70: GSBA | E70: tonne | F70: 308.3 | G70: 348.5 | J70: FOB Edmonton, add shipping & mixing
A71: Grouting (/m3 of rock grouted)
D72: grout | E72: m3 | F72: 236.55 | G72: 286.75 | J72: High: cement, FOB Yellowknife
A73: Labour & Equipment Rates
B74: Site manager | D74: sman | E74: $/hr | F74: 125 | G74: 152
B75: Supervisor | D75: super | E75: $/hr | F75: 52 | G75: 91.84
B76: Registered engineer | D76: eng | E76: $/hr | F76: 95 | G76: 220
B77: Environmental coordinator | D77: envco | E77: $/hr | F77: 74.16 | G77: 130
B78: Evironmental technologist | D78: envtech | E78: $/hr | F78: 36
B79: Electrician | D79: elec | E79: $/hr | F79: 74 | G79: 95
B80: Journeyman - various | D80: journey | E80: $/hr | F80: 44 | G80: 71.79
B81: Labour - skilled | D81: lab-s | E81: $/hr | F81: 41 | G81: 49.6 | H81: 120
B82: Labour - unskilled | D82: lab-us | E82: $/hr | F82: 31 | G82: 43.98
B83: Equipment operator | D83: oper | E83: $/hr | F83: 41 | G83: 65
B84: Heavy duty mechanic | D84: mech | E84: $/hr | F84: 49 | G84: 72.85
B85: Water treatment plant operator | D85: oper-wt | E85: $/hr | F85: 41 | G85: 59.86
B86: Security / first aid | D86: safety | E86: $/hr | F86: 36 | G86: 66.97
B87: Administative staff | D87: admin | E87: $/hr | F87: 38 | G87: 57.89
B89: Equipment rates include operator and fuel
B90: Loader - 4 cu.yd (3.06m3) | D90: load-s | E90: $/hr | F90: 175
B91: Loader - 7 cu.yd (5.35m3) | D91: load-l | E91: $/hr | F91: 315
B92: Excavator - 26.76-30.84 tonnes | D92: exc-s | E92: $/hr | F92: 190
B93: Excavator - 68.95+tonnes | D93: exc-l | E93: $/hr | F93: 420
B94: Grader | D94: grad | E94: $/hr | F94: 190
B95: Dump truck off hwy 30-50 tonnes | D95: truck-s | E95: $/hr | F95: 225
B96: Dump truck off hwy 55-75 tonnes | D96: truck-l | E96: $/hr | F96: 300
B97: dozer, small | D97: dozers | E97: $/hr | F97: 205 | G97: 260
B98: dozer, large | D98: dozerl | E98: $/hr | F98: 490 | G98: 565
B99: smooth drum compactor | D99: comp | E99: $/hr | F99: 155
B100: scooptram, 6 yd3 bucket | D100: scoop | E100: $/hr | F100: 170
B101: flat bed truck with hiab | D101: hiab | E101: $/hr | F101: 155
B102: fuel truck | D102: ftruck | E102: $/hr | F102: 150
B103: water truck | D103: wtruck | E103: $/hr | F103: 58 | G103: 150
A104: Mobilize Heavy Equipment
B105: Road access | D105: MHER | E105: kmtonne | F105: 3.4 | G105: 10.25
B106: Air access | D106: MHEA | E106: kmtonne | F106: 12 | J106: cargo rate>500lb
A107: Mobilize Camp
B108: Road access | D108: MCR | E108: each | F108: 50000 | J108: refurbish existing camp
A109: Mobilize Workers
B110: flight | D110: MW | E110: each | F110: 4500 | G110: 9100 | J110: Low:e.g. 8 passenger; High: Dash 7
A111: Oil Removal
B112: oil removal | D112: OR | E112: litre | F112: 0.43 | G112: 1.2 | J112: Low:waste oil heater; High: ship offsite
A113: PCB Removal
B114: Remove from site | D114: PCBR | E114: litre | F114: 40.2 | G114: 46.9 | J114: Low: shipping, handling & disposal from Yellowknife
A115: Pipes, small (<6in dia.)
B116: remove/dispose on site | D116: PSR | E116: m | F116: 1 | G116: 24 | J116: Low: remove/dispose on site; High: remove/re-use
B117: supply | D117: PSS | E117: m | F117: 6.1 | G117: 11.1 | J117: Low:supply; High:supply and ship
B118: install | D118: PSI | E118: m | F118: 25
A119: Pipes, large (>6in dia.)
B120: remove/dispose on site | D120: PLR | E120: m | F120: 22 | G120: 72 | J120: Low: remove/dispose on site; High: remove/re-use
B121: supply | D121: PLS | E121: m | F121: 129 | G121: 143 | J121: Low:supply; High:supply and ship
B122: install | D122: PLI | E122: m | F122: 50
A123: Power Lines
B124: remove/dispose on site | D124: POWR | E124: m | F124: 25.5
A125: Process Chemicals
B126: Remove from site | D126: PCR | E126: kg | F126: 0.45 | G126: 2.5 | J126: Low: shipping, handling & disposal from Yellowknife
A127: Pumps
B128: Pump capital cost | D128: PC | E128: each | F128: 195000
B129: Pump shipping | D129: PS | E129: each | F129: 2500
B130: Pump operating cost | D130: POC | E130: m3 | F130: 0.12 | J130: pump operating costs should be calculated based on pump capacity, fuel costs, etc.
B131: Pump maintenance | D131: PM | E131: allow | F131: 25000
A132: Pump sand BackFill
D133: PBF | E133: m3 | F133: 85 | G133: 300
A134: Scarify - road/mine site
D135: SCFY | E135: ha | F135: 4300 | G135: 6030 | H135: 2150
A136: Shaft, Raise & Portal Closures
B137: Shaft & Raises | D137: SR | E137: m2 | F137: 645 | G137: 2132 | J137: Low:pre-cast concrete slabs, little site prep. Area=shaft+>1m all around
B138: Portals | D138: POR | E138: m3 | F138: 18.8 | G138: 250 | H138: 1200 | J138: Low:unit cost code SCS;High:excavate & backfill collapsed portal;Spec: installed pressure plug
A139: Site Inspection Report
D140: RPT | E140: each | F140: 10000 | G140: 20000
A141: SpillWay - Clear
D142: SW | E142: each | F142: 3000 | G142: 7000
A143: Survey/Instrumentation
D144: SI | E144: each | F144: 1800 | G144: 3600 | J144: 2 person crew
A145: Treatment Plant - Construct
B146: Small (< 1000 m3/d) | D146: TPS | E146: lump sum | F146: 9000000 | G146: 15000000
B147: Large (> 1000 m3/d) | D147: TPL | E147: lump sum | F147: 15000000 | G147: 46000000
B148: Constructed Wetland | D148: CWTS | E148: ha | F148: 200000 | G148: 300000
A149: Treatment Plant - Operate
D150: TPO | E150: m3 | F150: 0.35 | G150: 2
A151: Treatment Chemicals
B152: ferric sulphate | D152: ferric | E152: kg | F152: 1.19
B153: ferrous sulphate | D153: ferrous | E153: kg | F153: 1.32
B154: lime | D154: lime | E154: kg | F154: 0.56
B155: hydrogen peroxide, 35% | D155: hperox | E155: kg | F155: 1.5
B156: Sodium Metabisulfate | D156: Nametab | E156: kg | F156: 1.18
B157: Caustic soda, 50% | D157: caustic | E157: kg | F157: 0.74
B158: Sulfuric acid, 93% | D158: sulfuric | E158: kg | F158: 0.31
B159: flocculant | D159: flocc | E159: kg | F159: 6
B160: copper sulphate | D160: copper | E160: kg
B161: shipping | D161: shipping | E161: kg | F161: 0.2
A162: Vegetation
B163: Hydroseed, Flat | D163: VHF | E163: ha | F163: 4000
B164: Hydroseed, Sloped | D164: VHS | E164: ha | F164: 4500
B165: Veg. blanket/erosion mat | D165: VB | E165: ha | F165: 13000
B166: Tree planting | D166: VT | E166: ha | F166: 2600 | G166: 6000
B167: Wetland species | D167: VW | E167: ha | H167: 47.72 | J167: Specified= /m3, Wetland Growth Media Substrate mixed and installed (sand, biochar and fertilizer, woodchips)
A168: Water Sampling/Analysis/Reporting
D169: WS | E169: each | F169: 7000 | G169: 10000
A170: Winter Road
B171: Construction | D171: WRC | E171: km | F171: 2000 | G171: 11500
B172: Usage | D172: WRU | E172: kmtonne | F172: 0.29

Sheet Estimator
B1: Unit Cost Estimator | D1: 1 | E1: Equipment Productivity Figures and Graphs have been reproduced from Caterpillar Performance Handbook - Edition 42
B2: EXCAVATION | G2: HAUL AND DUMPING | L2: SPREADING/DOZING
B3: Productivity | G3: Productivity | L3: Productivity
B4: Machine | C4: Cat 336EL | G4: Machine | H4: Cat 770 | L4: Machine | M4: Cat D8
B5: bucket capacity | D5: 3.16 | E5: m3 | G5: truck capacity | I5: 25.1 | J5: m3 | L5: Estimate production using example curves provided or | N5: 600 | O5: m3/hr
B6: fill factor | D6: 0.75 | E6: % | G6: fill factor | I6: 0.8 | J6: % | L6: equivalent from other supplier
B7: cycle time | D7: 45 | E7: seconds | L7: Correction factors (see table provided)
B8: operator skill | D8: 0.8 | E8: % | G8: load time | I8: 6 | J8: min. | L8: operator skill | N8: 0.75
B9: machine availability | D9: 0.83 | E9: % | G9: haul distance | I9: 1.5 | J9: km | L9: material type, see table | N9: 0.8
B10: altitude adjustment | D10: 1 | E10: % | G10: average velocity | I10: 20 | J10: km/hr | L10: slot dozing | N10: 1
B11: Hourly productivity | D11: =D5*D6*(60*60/D7)*D8*D9*D10 -> 125.8944 | E11: m3/hr | G11: haul time + return time | I11: =+I9/I10*60*2 -> 9 | J11: min. | L11: side by side dozing | N11: 1
G12: wait time | I12: 0.5 | J12: min. | L12: visibility | N12: 1
G13: dump time | I13: 1 | J13: min. | L13: job efficiency | N13: 0.83
G14: cycle time | I14: =I8+SUM(I11:I13) -> 16.5 | J14: min. | L14: altitude adjustment | N14: 1
G15: machine availability | I15: 0.83 | J15: % | L15: slope adjustment | N15: 1
G16: altitude adjustment | I16: 1 | J16: % | L16: Hourly productivity | N16: =+N5*N8*N9*N10*N11*N12*N13*N14*N15 -> 298.8 | O16: m3/hr
I17: =I14*I15*I16 -> 13.695 | J17: ave. min/cycle
G18: Hourly productivity | I18: =I5*I6*60/I17 -> 87.97371303 | J18: m3/hr
B19: Operating Costs | G19: Operating Costs | L19: Operating Costs
B20: - Contractor | G20: - Contractor | L20: - Contractor
B21: Contractor hourly rate | D21: 180 | E21: $/hr | G21: Contractor hourly rate | I21: 225 | J21: $/hr | L21: Hourly rate - contractor supplied | N21: 260 | O21: $/hr
B22: Excavation cost - contractor rate | D22: =D21/D11 -> 1.429769712 | E22: $/m3 | G22: Haul and Dump - contractor rate | I22: =I21/I18 -> 2.557582171 | J22: $/m3 | L22: Dozing - contractor rate | N22: =N21/N16 -> 0.8701472557 | O22: $/m3
B24: - Owner | G24: - Owner | L24: - Owner
B25: ownership, daily | E25: $/day | G25: ownership, daily | J25: $/day | L25: ownership, daily | O25: $/day
B26: maintenance | E26: $/hr | G26: maintenance | J26: $/hr | L26: maintenance | O26: $/hr
B27: fuel | E27: $/hr | G27: fuel | J27: $/hr | L27: fuel | O27: $/hr
B28: consumables (cutters, tires) | E28: $/hr | G28: consumables (cutters, tires) | J28: $/hr | L28: consumables (cutters, tires) | O28: $/hr
B29: operator | E29: $/hr | G29: operator | J29: $/hr | L29: operator | O29: $/hr
B30: Owner hourly rate | D30: =D25/10+SUM(D26:D29) -> 0 | E30: $/hr | G30: Owner hourly rate | I30: =I25/10+SUM(I26:I29) -> 0 | J30: $/hr | L30: Owner hourly rate | N30: =N25/10+SUM(N26:N29) -> 0
B31: Excavation cost - owner rate | D31: =D30/D11 -> 0 | E31: $/m3 | G31: Haul/Dumping Cost - owner rate | I31: =I30/I18 -> 0 | J31: $/m3 | L31: Spreading/Dozing Cost - owner rate | N31: =N30/N16 -> 0 | O31: $/hr
B32: Excavation cost - select contractor or owner rate (D22 or D31) | E32: $/m3 | G32: Haul/Dumping Cost - select contractor or owner rate (I22 or I31 | J32: $/m3 | L32: Spreading/Dozing Cost - select contractor or owner rate (N22 or N31) | O32: $/m3
B36: Excavator | G36: Trucking | L36: Dozing
C37: Cat 320 | D37: Cat 325B | E37: Cat 375 | H37: Cat 771 D | I37: Cat 777D | J37: Cat 789C
B38: heaped bucket capacity, m3 | C38: 1.5 | D38: 2.2 | E38: 5.4 | G38: Truck capacity - heaped, m3 | H38: 27.5 | I38: 60.5 | J38: 137
D39: Typical Cycle Times (seconds)
B40: easy digging, shallow digging, small swing angle | C40: 16 | D40: 18 | E40: 20
B41: med. to hard digging, rocky soil, swing angle to 90 deg. | C41: 23 | D41: 23 | E41: 25
B42: tough digging, sandstone, caliche, at max. machine depth, swing angle > 120 deg. | C42: 27 | D42: 29 | E42: 35
B44: Material | C44: Fill Factor (% of heaped bucket capacity
B45: Moist loam or sandy clay | D45: 100 - 110
B46: sand and gravel (not till) | D46: 95 - 110
B47: hard tough clay | D47: 80 - 90
B48: rock - will blasted | D48: 60 - 75
B49: rock - poorly blasted | D49: 40 -60
B51: Operator Skill | C51: poor | D51: average | E51: good
B52: Correction factor | C52: 0.6 | D52: 0.75 | E52: 1
B54: Machine availability | C54: poor | D54: average | E54: good
B55: Correction factor | C55: 0.9 | D55: 0.95 | E55: 1

Sheet Tools
A1: The functions in this worksheet serve as a back up in the event that the menu item "Add-Ins" is not shown in Excel menu bar
C4: Save file before clearing all data
L6: These functions duplicate components within worksheet
C9: Shows both active worksheet as well as table of Unit Costs in a separate window
C12: Prints all worksheets having non-zero sums
